Service Area,Service Area Categorisation,Service Division Categorisation,Responsible Unit,Expenses Types,Detailed Expenses Type,Expense Code,Narrative,Invoice Date,Payment Date,Amount,Capital/Revenue,Supplier Name
Schools Total,School Group 7 � Pupil Capacity 501-1800,MCC Schools,King Henry VIII Comprehensive,Supplies & Services,"Equipment, Furniture and Materials",Equipment Purchases,,21/07/2023,11/08/2023,84,,Redacted Data
Capital Division,Capital Dept,Capital,Capital Programme,Third Party Payments,Third Party,General Contracts,,17/07/2023,15/08/2023,4604.15,,Urban Property Building Services
Capital Division,Capital Dept,Capital,Capital Programme,Third Party Payments,Third Party,General Contracts,,31/07/2023,15/08/2023,8315,,MPS Maintenance Services Ltd
Children Services,Children Services Teams,Social Care and Health,Family Support and Protection Team � North,Third Party Payments,Third Party,Individual Needs,,04/08/2023,10/08/2023,270,,The Windfall Centre Ltd
Schools Total,School Group 2 � Pupil Capacity 144-314,MCC Schools,Thornwell Primary School,Supplies & Services,"Equipment, Furniture and Materials",Materials & Consumables.,,06/07/2023,15/08/2023,-9.98,,Amazon Payments UK Limited
Schools Total,School Group 2 � Pupil Capacity 144-314,MCC Schools,Thornwell Primary School,Supplies & Services,"Equipment, Furniture and Materials",Materials & Consumables.,,06/07/2023,15/08/2023,-9.98,,Amazon Payments UK Limited
Capital Division,Capital Dept,Capital,Capital Programme,Third Party Payments,Third Party,General Contracts,,11/08/2023,15/08/2023,7740,,CP Contracts
Capital Division,Capital Dept,Capital,Capital Programme,Third Party Payments,Third Party,General Contracts,,24/07/2023,15/08/2023,13193.91,,GB Home Adaptations Limited
Schools Total,School Group 2 � Pupil Capacity 144-314,MCC Schools,Archbishop Rowan Williams CiW Primary School (VA),Supplies & Services,"Equipment, Furniture and Materials",Materials & Consumables.,,20/07/2023,08/08/2023,8.29,,Amazon Payments UK Limited
Capital Division,Capital Dept,Capital,Capital Programme,Third Party Payments,Third Party,General Contracts,,08/07/2023,10/08/2023,5925,,MPS Maintenance Services Ltd
Capital Division,Capital Dept,Capital,Capital Programme,Third Party Payments,Third Party,General Contracts,,08/07/2023,10/08/2023,7605,,MPS Maintenance Services Ltd
Capital Division,Capital Dept,Capital,Capital Programme,Third Party Payments,Third Party,General Contracts,,08/07/2023,10/08/2023,8980,,MPS Maintenance Services Ltd
Capital Division,Capital Dept,Capital,Capital Programme,Third Party Payments,Third Party,General Contracts,,02/08/2023,10/08/2023,1382.4,,Urban Property Building Services
Capital Division,Capital Dept,Capital,Capital Programme,Third Party Payments,Third Party,General Contracts,,02/08/2023,10/08/2023,2187,,Stannah Stairlifts Ltd
Adult Services,ADULT DISABILITY SERVICES,Social Care and Health,CLDT,Third Party Payments,Third Party,Personal Care.,,23/07/2023,10/08/2023,8869.48,,Learning Together Limited
Schools Total,School Group 2 � Pupil Capacity 144-314,MCC Schools,Archbishop Rowan Williams CiW Primary School (VA),Supplies & Services,"Equipment, Furniture and Materials",Materials & Consumables.,,18/07/2023,08/08/2023,17.67,,Amazon Payments UK Limited
Schools Total,School Group 2 � Pupil Capacity 144-314,MCC Schools,Archbishop Rowan Williams CiW Primary School (VA),Supplies & Services,"Equipment, Furniture and Materials",Materials & Consumables.,,18/07/2023,08/08/2023,12.93,,Amazon Payments UK Limited
Schools Total,School Group 2 � Pupil Capacity 144-314,MCC Schools,Archbishop Rowan Williams CiW Primary School (VA),Supplies & Services,"Equipment, Furniture and Materials",Materials & Consumables.,,18/07/2023,08/08/2023,13.87,,Amazon Payments UK Limited
Schools Total,School Group 2 � Pupil Capacity 144-314,MCC Schools,Archbishop Rowan Williams CiW Primary School (VA),Supplies & Services,"Equipment, Furniture and Materials",Materials & Consumables.,,17/07/2023,08/08/2023,23.38,,Amazon Payments UK Limited
Capital Division,Capital Dept,Capital,Capital Programme,Third Party Payments,Third Party,General Contracts,,04/08/2023,10/08/2023,6900,,CP Contracts
Schools Total,School Group 7 � Pupil Capacity 501-1800,MCC Schools,King Henry VIII Comprehensive,Supplies & Services,"Equipment, Furniture and Materials",Equipment Purchases,,21/07/2023,11/08/2023,18.24,,REDACTED DATA
Schools Total,School Group 7 � Pupil Capacity 501-1800,MCC Schools,King Henry VIII Comprehensive,Supplies & Services,"Equipment, Furniture and Materials",Equipment Purchases,,21/07/2023,11/08/2023,11.53,,REDACTED DATA
Schools Total,School Group 7 � Pupil Capacity 501-1800,MCC Schools,King Henry VIII Comprehensive,Supplies & Services,"Equipment, Furniture and Materials",Equipment Purchases,,21/07/2023,11/08/2023,9.99,,REDACTED DATA
Schools Total,School Group 7 � Pupil Capacity 501-1800,MCC Schools,King Henry VIII Comprehensive,Supplies & Services,"Equipment, Furniture and Materials",Equipment Purchases,,21/07/2023,11/08/2023,21.81,,REDACTED DATA
Schools Total,School Group 7 � Pupil Capacity 501-1800,MCC Schools,King Henry VIII Comprehensive,Supplies & Services,"Equipment, Furniture and Materials",Equipment Purchases,,21/07/2023,11/08/2023,1.45,,REDACTED DATA
Adult Services,Direct Care Residential,Social Care and Health,Severn View Residential,Supplies & Services,"Equipment, Furniture and Materials",Provisions.,,18/07/2023,03/08/2023,522.8,,REDACTED DATA
Adult Services,Direct Care Residential,Social Care and Health,Severn View Residential,Supplies & Services,Communications and Computing,Postages,,18/07/2023,03/08/2023,39.79,,REDACTED DATA
Neighbourhood Services,Highways,Communities & Place,Emergency response Cat 1,Premises,"Repairs, Alterations & Maintenance of Buildings",Skip Hire,,30/04/2023,07/08/2023,415,,Volehurst Ltd
Neighbourhood Services,Highways,Communities & Place,Compounds: Health and Safety,Premises,"Repairs, Alterations & Maintenance of Buildings",Skip Hire,,30/04/2023,07/08/2023,415,,Volehurst Ltd
Adult Services,Direct Care Residential,Social Care and Health,Severn View Residential,Supplies & Services,Services,Bank Charges,,18/07/2023,03/08/2023,1.97,,REDACTED DATA
Adult Services,Direct Care Residential,Social Care and Health,Severn View Residential,Supplies & Services,Services,Assistance To Clients,,18/07/2023,03/08/2023,424.71,,REDACTED DATA
Adult Services,Direct Care Residential,Social Care and Health,Severn View Residential,Supplies & Services,"Equipment, Furniture and Materials",Materials & Consumables.,,18/07/2023,03/08/2023,481.35,,REDACTED DATA
Adult Services,Direct Care,Social Care and Health,Monmouthshire Meals,Supplies & Services,"Equipment, Furniture and Materials",Provisions.,,04/08/2023,15/08/2023,164.28,,Apetito Ltd
Finance & Business Devlopment,Attractions,MonLife Directorate,Old Station Tintern,Supplies & Services,Catering,Cafe,,08/08/2023,15/08/2023,151.22,,Brookes Wye Valley Dairy Co Ltd
Finance & Business Devlopment,Attractions,MonLife Directorate,Old Station Tintern,Supplies & Services,Catering,Cafe,,11/08/2023,15/08/2023,39.68,,Castell Howell Foods Ltd
Finance & Business Devlopment,Attractions,MonLife Directorate,Old Station Tintern,Supplies & Services,Catering,Cafe,,11/08/2023,15/08/2023,56.93,,Castell Howell Foods Ltd
Finance & Business Devlopment,Attractions,MonLife Directorate,Old Station Tintern,Supplies & Services,Catering,Cafe,,08/08/2023,15/08/2023,209.33,,Chapple & Jenkins Ltd
Finance & Business Devlopment,Attractions,MonLife Directorate,Old Station Tintern,Supplies & Services,Catering,Cafe,,08/08/2023,15/08/2023,17.98,,Chapple & Jenkins Ltd
Finance & Business Devlopment,Attractions,MonLife Directorate,Old Station Tintern,Supplies & Services,Catering,Cafe,,08/08/2023,15/08/2023,-17.98,,Chapple & Jenkins Ltd
Finance & Business Devlopment,Attractions,MonLife Directorate,Old Station Tintern,Supplies & Services,Catering,Cafe,,08/08/2023,15/08/2023,103.3,,The Pie House At Cinderhill Farm Limited
Finance & Business Devlopment,Attractions,MonLife Directorate,Old Station Tintern,Supplies & Services,Catering,Cafe,,21/08/2023,22/08/2023,169.77,,Castell Howell Foods Ltd
Finance & Business Devlopment,Attractions,MonLife Directorate,Old Station Tintern,Supplies & Services,Catering,Cafe,,21/08/2023,22/08/2023,211.55,,Castell Howell Foods Ltd
Adult Services,Direct Care,Social Care and Health,Monmouthshire Meals,Supplies & Services,"Equipment, Furniture and Materials",Provisions.,,31/07/2023,15/08/2023,79.59,,Apetito Ltd
Adult Services,Direct Care,Social Care and Health,Monmouthshire Meals,Supplies & Services,"Equipment, Furniture and Materials",Provisions.,,31/07/2023,15/08/2023,20.08,,Apetito Ltd
"Facilities, Fleet & Decarbonisation",Property Services -  Cleaning,Communities & Place,Building Cleaning,Supplies & Services,"Equipment, Furniture and Materials",Cleaning Materials.,,11/08/2023,17/08/2023,620,,White Monk
Adult Services,Direct Care Residential,Social Care and Health,Severn View Residential,Supplies & Services,"Equipment, Furniture and Materials",Materials & Consumables.,,18/07/2023,03/08/2023,-3.35,,REDACTED DATA
Adult Services,Day Centres,Social Care and Health,Severn View DC,Supplies & Services,"Equipment, Furniture and Materials",Materials & Consumables.,,18/07/2023,03/08/2023,6.36,,REDACTED DATA
"Enterprise, Housing & Community Animation",Business Growth & Enterprise,Communities & Place,Enterprise Management � Strategic Operations Team,Employees,Indirect Employee Expenses,Staff Welfare,,28/07/2023,08/08/2023,50,,Redacted Data
"Facilities, Fleet & Decarbonisation",Catering Services,Communities & Place,Schools Catering,Employees,Indirect Employee Expenses,Staff Welfare,,28/07/2023,08/08/2023,50,,Redacted Data
Schools Total,School Group 7 � Pupil Capacity 501-1800,MCC Schools,Monmouth Comprehensive,Employees,Indirect Employee Expenses,Staff Welfare,,28/07/2023,08/08/2023,100,,Redacted Data
Schools Total,School Group 2 � Pupil Capacity 144-314,MCC Schools,Thornwell Primary School,Employees,Indirect Employee Expenses,Staff Welfare,,28/07/2023,08/08/2023,100,,Redacted Data
Finance & Business Devlopment,Attractions,MonLife Directorate,Tourist Information Centres,Supplies & Services,Catering,Cafe,,16/08/2023,22/08/2023,92.7,,Brookes Wye Valley Dairy Co Ltd
Finance & Business Devlopment,Borough Theatre,MonLife Directorate,Borough Theatre General,Supplies & Services,"Equipment, Furniture and Materials",Promotions And Exhibitions,,14/08/2023,29/08/2023,2228.95,,Abergavenny Theatre Group
"Leisure, Youth & Outdoor Adventure",Leisure Services,MonLife Directorate,Caldicot Leisure Centre,Supplies & Services,Catering,Cafe,,15/08/2023,29/08/2023,426.17,,Chapple & Jenkins Ltd
"Leisure, Youth & Outdoor Adventure",Leisure Services,MonLife Directorate,Caldicot Leisure Centre,Supplies & Services,Catering,Cafe,,15/08/2023,29/08/2023,74.69,,Chapple & Jenkins Ltd
"Leisure, Youth & Outdoor Adventure",Leisure Services,MonLife Directorate,Caldicot Leisure Centre,Supplies & Services,Catering,Cafe,,15/08/2023,29/08/2023,-74.69,,Chapple & Jenkins Ltd
Children Services,Supporting Children & Young People Service,Social Care and Health,Business Support Team,Employees,Indirect Employee Expenses,Staff Welfare,,28/07/2023,08/08/2023,50,,Redacted Data
Adult Services,Direct Care,Social Care and Health,Care at Home,Employees,Indirect Employee Expenses,Staff Welfare,,28/07/2023,08/08/2023,50,,Redacted Data
Schools Total,School Group 7 � Pupil Capacity 501-1800,MCC Schools,King Henry VIII Comprehensive,Employees,Indirect Employee Expenses,"Course, Conference And Seminar Fees",,21/07/2023,11/08/2023,269,,REDACTED DATA
Adult Services,Direct Care Residential,Social Care and Health,Severn View Residential,Supplies & Services,"Equipment, Furniture and Materials",Equipment Purchases,,18/07/2023,03/08/2023,76.95,,REDACTED DATA
Adult Services,Direct Care Residential,Social Care and Health,Severn View Residential,Supplies & Services,"Equipment, Furniture and Materials",Equipment Purchases,,18/07/2023,03/08/2023,17.38,,REDACTED DATA
Adult Services,Day Centres,Social Care and Health,Severn View DC,Supplies & Services,"Equipment, Furniture and Materials",Equipment Purchases,,18/07/2023,03/08/2023,45.83,,REDACTED DATA
Finance & Business Devlopment,Attractions,MonLife Directorate,Old Station Tintern,Supplies & Services,Catering,Cafe,,15/08/2023,22/08/2023,106.55,,The Pie House At Cinderhill Farm Limited
Finance & Business Devlopment,Attractions,MonLife Directorate,Old Station Tintern,Supplies & Services,Catering,Cafe,,18/08/2023,22/08/2023,104.8,,Isabel's Bakehouse
Finance & Business Devlopment,Attractions,MonLife Directorate,Old Station Tintern,Supplies & Services,Catering,Cafe,,08/08/2023,14/08/2023,-3.93,,Castell Howell Foods Ltd
"Commercial, Corporate & landlord Services",Property Services & Facilities Management,Resources,Gwent Police Collaboration,Premises,"Repairs, Alterations & Maintenance of Buildings",Building Improvements / Maintenance,,18/08/2023,22/08/2023,114.98,,Lorne Stewart  Plc
"Commercial, Corporate & landlord Services",Property Services & Facilities Management,Resources,Gwent Police Collaboration,Premises,"Repairs, Alterations & Maintenance of Buildings",Building Improvements / Maintenance,,18/08/2023,22/08/2023,816.4,,Lorne Stewart  Plc
"Commercial, Corporate & landlord Services",Property Services & Facilities Management,Resources,Gwent Police Collaboration,Premises,"Repairs, Alterations & Maintenance of Buildings",Building Improvements / Maintenance,,18/08/2023,22/08/2023,225.1,,Lorne Stewart  Plc
"Commercial, Corporate & landlord Services",Property Services & Facilities Management,Resources,Gwent Police Collaboration,Premises,"Repairs, Alterations & Maintenance of Buildings",Building Improvements / Maintenance,,18/08/2023,22/08/2023,114.98,,Lorne Stewart  Plc
"Commercial, Corporate & landlord Services",Property Services & Facilities Management,Resources,Gwent Police Collaboration,Premises,"Repairs, Alterations & Maintenance of Buildings",Building Improvements / Maintenance,,18/08/2023,22/08/2023,128.75,,Lorne Stewart  Plc
"Commercial, Corporate & landlord Services",Property Services & Facilities Management,Resources,Gwent Police Collaboration,Premises,"Repairs, Alterations & Maintenance of Buildings",Building Improvements / Maintenance,,18/08/2023,22/08/2023,1322.31,,Lorne Stewart  Plc
"Commercial, Corporate & landlord Services",Property Services & Facilities Management,Resources,Gwent Police Collaboration,Premises,"Repairs, Alterations & Maintenance of Buildings",Building Improvements / Maintenance,,18/08/2023,22/08/2023,202.42,,Lorne Stewart  Plc
"Commercial, Corporate & landlord Services",Property Services & Facilities Management,Resources,Gwent Police Collaboration,Premises,"Repairs, Alterations & Maintenance of Buildings",Building Improvements / Maintenance,,13/06/2023,10/08/2023,160,,EFS Systems (UK) Ltd
"Facilities, Fleet & Decarbonisation",Transport Department,Communities & Place,Transport,Transport,Direct Transport Costs,M.O.T. Test,,31/07/2023,15/08/2023,91,,Willson and Wilding Ltd
"Facilities, Fleet & Decarbonisation",Transport Department,Communities & Place,Transport,Transport,Direct Transport Costs,M.O.T. Test,,31/07/2023,15/08/2023,42,,Willson and Wilding Ltd
"Facilities, Fleet & Decarbonisation",Transport Department,Communities & Place,Transport,Transport,Direct Transport Costs,M.O.T. Test,,31/07/2023,15/08/2023,91,,Willson and Wilding Ltd
"Facilities, Fleet & Decarbonisation",Transport Department,Communities & Place,Transport,Transport,Direct Transport Costs,M.O.T. Test,,31/07/2023,15/08/2023,67,,Willson and Wilding Ltd
Children Services,Children Services Teams,Social Care and Health,Placement & Support Team,Supplies & Services,"Equipment, Furniture and Materials",Advertising,,28/02/2023,15/08/2023,2142,,Sunshine Radio Ltd
"Leisure, Youth & Outdoor Adventure",Leisure Services,MonLife Directorate,Monmouth Leisure Centre,Premises,"Repairs, Alterations & Maintenance of Buildings",Premises Repairs And Maintenance,,07/08/2023,10/08/2023,944.47,,PLAY REVOLUTION
Children Services,Children Services Teams,Social Care and Health,Long Term Support Team,Employees,Direct Employee Expenses,Agency Staff,,08/08/2023,10/08/2023,834.72,,NonStop Recruitment Ltd.
"Facilities, Fleet & Decarbonisation",Transport Department,Communities & Place,Transport,Transport,Direct Transport Costs,M.O.T. Test,,04/08/2023,15/08/2023,113,,Commercial Motors (Wales) LTD.
Children Services,Children Services Teams,Social Care and Health,Long Term Support Team,Employees,Direct Employee Expenses,Agency Staff,,18/08/2023,22/08/2023,392.62,,Hoop
Children Services,Children Services Teams,Social Care and Health,Family Support and Protection Team � North,Employees,Direct Employee Expenses,Agency Staff,,18/08/2023,22/08/2023,1093,,Hoop
"Commercial, Corporate & landlord Services",Property Services & Facilities Management,Resources,Gwent Police Collaboration,Premises,"Repairs, Alterations & Maintenance of Buildings",Building Improvements / Maintenance,,13/06/2023,07/08/2023,138,,EFS Systems (UK) Ltd
"Commercial, Corporate & landlord Services",Property Services & Facilities Management,Resources,Gwent Police Collaboration,Premises,"Repairs, Alterations & Maintenance of Buildings",Building Improvements / Maintenance,,13/06/2023,07/08/2023,97.58,,EFS Systems (UK) Ltd
"Commercial, Corporate & landlord Services",Property Services & Facilities Management,Resources,Gwent Police Collaboration,Premises,"Repairs, Alterations & Maintenance of Buildings",Building Improvements / Maintenance,,13/06/2023,07/08/2023,49,,EFS Systems (UK) Ltd
Children Services,Children Services Other,Social Care and Health,Joint Adoption,Premises,"Repairs, Alterations & Maintenance of Buildings",Building Improvements / Maintenance,,25/07/2023,15/08/2023,237.58,,A J Quinn Building Contractors Ltd
"Facilities, Fleet & Decarbonisation",Transport Department,Communities & Place,Transport,Transport,Direct Transport Costs,M.O.T. Test,,04/08/2023,15/08/2023,45,,Commercial Motors (Wales) LTD.
Democratic Services,Legal & Land Charges,People & Governance,Legal Section,Supplies & Services,Grants and Subscriptions,Subscriptions,,31/07/2023,10/08/2023,650,,Wildy and Sons Limited
"Enterprise, Housing & Community Animation",General Fund Housing,Communities & Place,Homelessness,Supplies & Services,Services,Homelessness Bed & Breakfast Accomodation,,31/07/2023,10/08/2023,693,,Stepping Stone Newport Ltd
"Enterprise, Housing & Community Animation",General Fund Housing,Communities & Place,Homelessness,Supplies & Services,Services,Homelessness Bed & Breakfast Accomodation,,30/06/2023,10/08/2023,720,,Premier Inn
Finance & Business Devlopment,Museums,MonLife Directorate,Museums Conservation Service,Supplies & Services,"Equipment, Furniture and Materials",Advertising,,28/07/2023,10/08/2023,175,,Focus Magazines Ltd
"Commercial, Corporate & landlord Services",Property Services & Facilities Management,Resources,Gwent Police Collaboration,Premises,"Repairs, Alterations & Maintenance of Buildings",Building Improvements / Maintenance,,18/08/2023,22/08/2023,145.8,,Lorne Stewart  Plc
"Commercial, Corporate & landlord Services",Property Services & Facilities Management,Resources,Gwent Police Collaboration,Premises,"Repairs, Alterations & Maintenance of Buildings",Building Improvements / Maintenance,,18/08/2023,22/08/2023,133.48,,Lorne Stewart  Plc
"Commercial, Corporate & landlord Services",Property Services & Facilities Management,Resources,Gwent Police Collaboration,Premises,"Repairs, Alterations & Maintenance of Buildings",Building Improvements / Maintenance,,18/08/2023,22/08/2023,147.4,,Lorne Stewart  Plc
Children Services,Children Services Teams,Social Care and Health,Early Help and Assessment Team,Employees,Direct Employee Expenses,Agency Staff,,07/07/2023,08/09/2023,38.47,,Leaders In Care
Children Services,Children Services Teams,Social Care and Health,Early Help and Assessment Team,Employees,Direct Employee Expenses,Agency Staff,,12/07/2023,08/09/2023,1655.77,,Leaders In Care
Capital Division,Capital Dept,Capital,Capital Programme,Premises,"Repairs, Alterations & Maintenance of Buildings",Premises Repairs And Maintenance,,03/08/2023,11/08/2023,1566830.2,,Morgan Sindall plc
Adult Services,Direct Care Residential,Social Care and Health,Severn View Residential,Supplies & Services,"Equipment, Furniture and Materials",Equipment Purchases,,13/08/2023,22/08/2023,216.95,,REDACTED DATA
Schools Total,School Group 2 � Pupil Capacity 144-314,MCC Schools,Usk CiW Primary School (VC),Supplies & Services,Services,Residential Trips,,18/07/2023,17/08/2023,160,,Amgueddfa Cymru - National Museum Wales
"Commercial, Corporate & landlord Services",Property Services & Facilities Management,Resources,Reactive Maintenance,Premises,"Repairs, Alterations & Maintenance of Buildings",Building Improvements / Maintenance,,26/07/2023,15/08/2023,124.69,,A J Quinn Building Contractors Ltd
"Commercial, Corporate & landlord Services",Property Services & Facilities Management,Resources,Reactive Maintenance,Premises,"Repairs, Alterations & Maintenance of Buildings",Building Improvements / Maintenance,,25/07/2023,15/08/2023,172.66,,A J Quinn Building Contractors Ltd
Schools Total,School Group 2 � Pupil Capacity 144-314,MCC Schools,Thornwell Primary School,Employees,Direct Employee Expenses,Agency Staff,,28/06/2023,15/08/2023,5153.58,,Teaching 4 Wales Ltd
Children Services,Children Services Teams,Social Care and Health,Disabled Children,Supplies & Services,Services,Professional And Specialist Fees,,24/07/2023,08/08/2023,2217.78,,Rhondda Cynon Taff Cbc
"Commercial, Corporate & landlord Services",Property Services & Facilities Management,Resources,Reactive Maintenance,Premises,"Repairs, Alterations & Maintenance of Buildings",Building Improvements / Maintenance,,26/07/2023,15/08/2023,142.98,,A J Quinn Building Contractors Ltd
"Commercial, Corporate & landlord Services",Property Services & Facilities Management,Resources,Reactive Maintenance,Premises,"Repairs, Alterations & Maintenance of Buildings",Building Improvements / Maintenance,,26/07/2023,15/08/2023,139.06,,A J Quinn Building Contractors Ltd
"Commercial, Corporate & landlord Services",Property Services & Facilities Management,Resources,Reactive Maintenance,Premises,"Repairs, Alterations & Maintenance of Buildings",Building Improvements / Maintenance,,25/07/2023,15/08/2023,353.68,,A J Quinn Building Contractors Ltd
"Commercial, Corporate & landlord Services",Property Services & Facilities Management,Resources,Reactive Maintenance,Premises,"Repairs, Alterations & Maintenance of Buildings",Building Improvements / Maintenance,,25/07/2023,15/08/2023,221.96,,A J Quinn Building Contractors Ltd
Adult Services,Direct Care Residential,Social Care and Health,Severn View Residential,Supplies & Services,"Equipment, Furniture and Materials",Materials & Consumables.,,13/08/2023,22/08/2023,456.08,,REDACTED DATA
"Facilities, Fleet & Decarbonisation",Catering Services,Communities & Place,Schools Catering,Supplies & Services,"Equipment, Furniture and Materials",Materials & Consumables.,,31/07/2023,29/08/2023,145.09,,Newhall Janitorial Ltd
"Facilities, Fleet & Decarbonisation",Catering Services,Communities & Place,Schools Catering,Supplies & Services,"Equipment, Furniture and Materials",Materials & Consumables.,,07/08/2023,29/08/2023,-4.51,,Castell Howell Foods Ltd
"Facilities, Fleet & Decarbonisation",Catering Services,Communities & Place,Schools Catering,Supplies & Services,"Equipment, Furniture and Materials",Materials & Consumables.,,07/08/2023,29/08/2023,20374.41,,Castell Howell Foods Ltd
Schools Total,School Group 1 � Pupil Capacity 1-143,MCC Schools,Llanvihangel Crucorney Primary School,Supplies & Services,"Equipment, Furniture and Materials",Materials & Consumables.,,17/07/2023,29/08/2023,1.19,,Hope Education Ltd
Schools Total,School Group 1 � Pupil Capacity 1-143,MCC Schools,Llanvihangel Crucorney Primary School,Supplies & Services,"Equipment, Furniture and Materials",Materials & Consumables.,,30/06/2023,29/08/2023,702.41,,Hope Education Ltd
Schools Total,SCHGRP3 � School Group 3 � Pupil Capacity 315-500,MCC Schools,Magor CiW Primary School (VA),Employees,Direct Employee Expenses,Agency Staff,,12/07/2023,02/08/2023,1161.42,,Teaching 4 Wales Ltd
Schools Total,School Group 2 � Pupil Capacity 144-314,MCC Schools,Goytre Fawr Primary School,Employees,Direct Employee Expenses,Agency Staff,,23/07/2023,02/08/2023,207.56,,New Directions Education Ltd
Schools Total,School Group 2 � Pupil Capacity 144-314,MCC Schools,Goytre Fawr Primary School,Employees,Direct Employee Expenses,Agency Staff,,23/07/2023,02/08/2023,207.56,,New Directions Education Ltd
Schools Total,School Group 2 � Pupil Capacity 144-314,MCC Schools,Dewstow Primary School,Employees,Direct Employee Expenses,Agency Staff,,23/07/2023,02/08/2023,207.56,,New Directions Education Ltd
Schools Total,School Group 2 � Pupil Capacity 144-314,MCC Schools,Dewstow Primary School,Employees,Direct Employee Expenses,Agency Staff,,23/07/2023,02/08/2023,207.56,,New Directions Education Ltd
Schools Total,School Group 2 � Pupil Capacity 144-314,MCC Schools,Dewstow Primary School,Employees,Direct Employee Expenses,Agency Staff,,23/07/2023,02/08/2023,207.56,,New Directions Education Ltd
Schools Total,School Group 2 � Pupil Capacity 144-314,MCC Schools,Dewstow Primary School,Employees,Direct Employee Expenses,Agency Staff,,23/07/2023,02/08/2023,207.56,,New Directions Education Ltd
Schools Total,School Group 2 � Pupil Capacity 144-314,MCC Schools,Dewstow Primary School,Employees,Direct Employee Expenses,Agency Staff,,23/07/2023,02/08/2023,118.01,,New Directions Education Ltd
Schools Total,School Group 2 � Pupil Capacity 144-314,MCC Schools,Dewstow Primary School,Employees,Direct Employee Expenses,Agency Staff,,23/07/2023,02/08/2023,118.01,,New Directions Education Ltd
Schools Total,School Group 7 � Pupil Capacity 501-1800,MCC Schools,King Henry VIII Comprehensive,Employees,Direct Employee Expenses,Agency Staff,,23/07/2023,02/08/2023,141.59,,New Directions Education Ltd
Schools Total,School Group 7 � Pupil Capacity 501-1800,MCC Schools,King Henry VIII Comprehensive,Employees,Direct Employee Expenses,Agency Staff,,23/07/2023,02/08/2023,141.59,,New Directions Education Ltd
"Commercial, Corporate & landlord Services",Property Services & Facilities Management,Resources,Reactive Maintenance,Premises,"Repairs, Alterations & Maintenance of Buildings",Building Improvements / Maintenance,,27/07/2023,15/08/2023,736.71,,A J Quinn Building Contractors Ltd
Children Services,Children Services Teams,Social Care and Health,Family Support and Protection Team � North,Supplies & Services,Services,Professional And Specialist Fees,,28/07/2023,08/08/2023,749,,DNA Legal
Children Services,Children Services Teams,Social Care and Health,Family Support and Protection Team � North,Supplies & Services,Services,Professional And Specialist Fees,,28/04/2023,08/08/2023,275.58,,DNA Legal
Children Services,Children Services Teams,Social Care and Health,Family Support and Protection Team � North,Supplies & Services,Services,Professional And Specialist Fees,,28/04/2023,08/08/2023,415.02,,DNA Legal
Children Services,Children Services Teams,Social Care and Health,Family Support and Protection Team � North,Supplies & Services,Services,Professional And Specialist Fees,,28/04/2023,08/08/2023,58.4,,DNA Legal
Standards,Early Years,Children & Young People,Flying Start Grant,Supplies & Services,Services,Child Minding Fees,,09/08/2023,10/08/2023,8685,,Nevill Hall Creche
Schools Total,School Group 7 � Pupil Capacity 501-1800,MCC Schools,King Henry VIII Comprehensive,Employees,Direct Employee Expenses,Agency Staff,,23/07/2023,02/08/2023,141.59,,New Directions Education Ltd
Adult Services,Direct Care Residential,Social Care and Health,Severn View Residential,Supplies & Services,"Equipment, Furniture and Materials",Materials & Consumables.,,13/08/2023,22/08/2023,40,,REDACTED DATA
Capital Division,Capital Dept,Capital,Capital Programme,Third Party Payments,Third Party,General Contracts,,10/08/2023,29/08/2023,1362.8,,Allmarque PMS Ltd t/a Roman Road Marking
Adult Services,Day Centres,Social Care and Health,Severn View DC,Supplies & Services,"Equipment, Furniture and Materials",Materials & Consumables.,,13/08/2023,22/08/2023,19.98,,REDACTED DATA
Adult Services,Direct Care Residential,Social Care and Health,Severn View Residential,Supplies & Services,Services,Assistance To Clients,,13/08/2023,22/08/2023,994.91,,REDACTED DATA
Adult Services,Direct Care Residential,Social Care and Health,Severn View Residential,Supplies & Services,"Printing, Stationery and General Office Expenses",Stationery,,18/07/2023,03/08/2023,180.18,,REDACTED DATA
SCH Support,Finance (SHS),Social Care and Health,Finance,Supplies & Services,"Printing, Stationery and General Office Expenses",Stationery,,18/07/2023,03/08/2023,75,,REDACTED DATA
Adult Services,Direct Care Residential,Social Care and Health,Severn View Residential,Supplies & Services,"Printing, Stationery and General Office Expenses",Stationery,,13/08/2023,22/08/2023,209.61,,REDACTED DATA
Adult Services,Direct Care Residential,Social Care and Health,Severn View Residential,Supplies & Services,"Equipment, Furniture and Materials",Provisions.,,13/08/2023,22/08/2023,483.1,,REDACTED DATA
Adult Services,Direct Care Residential,Social Care and Health,Severn View Residential,Supplies & Services,Communications and Computing,Postages,,13/08/2023,22/08/2023,17.97,,REDACTED DATA
Schools Total,School Group 7 � Pupil Capacity 501-1800,MCC Schools,Caldicot School,Supplies & Services,"Equipment, Furniture and Materials",Materials & Consumables.,,14/03/2023,10/08/2023,33.58,,REDACTED DATA
Schools Total,School Group 7 � Pupil Capacity 501-1800,MCC Schools,Caldicot School,Supplies & Services,"Equipment, Furniture and Materials",Materials & Consumables.,,14/03/2023,10/08/2023,30.14,,REDACTED DATA
Schools Total,School Group 7 � Pupil Capacity 501-1800,MCC Schools,Caldicot School,Supplies & Services,"Equipment, Furniture and Materials",Materials & Consumables.,,14/03/2023,10/08/2023,1.18,,REDACTED DATA
Schools Total,School Group 7 � Pupil Capacity 501-1800,MCC Schools,Caldicot School,Supplies & Services,"Equipment, Furniture and Materials",Materials & Consumables.,,14/03/2023,10/08/2023,58.76,,REDACTED DATA
Neighbourhood Services,Highways,Communities & Place,Internal others,Transport,Direct Transport Costs,Transport Costs,,03/05/2023,07/08/2023,10.8,,Hanson Quarry Products Europe Ltd
Adult Services,ADULT DISABILITY SERVICES,Social Care and Health,CLDT,Third Party Payments,Third Party,Personal Care.,,21/07/2023,10/08/2023,8298.44,,Green Valley Care
Adult Services,ADULT DISABILITY SERVICES,Social Care and Health,CLDT,Third Party Payments,Third Party,Personal Care.,,21/07/2023,10/08/2023,4783.88,,Green Valley Care
Adult Services,ADULT DISABILITY SERVICES,Social Care and Health,CLDT,Third Party Payments,Third Party,Personal Care.,,21/07/2023,10/08/2023,4783.88,,Green Valley Care
Capital Division,Capital Dept,Capital,Capital Programme,Third Party Payments,Third Party,General Contracts,,31/07/2023,10/08/2023,295,,MPS Maintenance Services Ltd
Capital Division,Capital Dept,Capital,Capital Programme,Third Party Payments,Third Party,General Contracts,,01/08/2023,10/08/2023,770,,MPS Maintenance Services Ltd
Schools Total,School Group 7 � Pupil Capacity 501-1800,MCC Schools,Caldicot School,Supplies & Services,"Equipment, Furniture and Materials",Materials & Consumables.,,14/03/2023,10/08/2023,33.73,,REDACTED DATA
Schools Total,School Group 7 � Pupil Capacity 501-1800,MCC Schools,Caldicot School,Supplies & Services,"Equipment, Furniture and Materials",Materials & Consumables.,,14/03/2023,10/08/2023,11.66,,REDACTED DATA
Schools Total,School Group 7 � Pupil Capacity 501-1800,MCC Schools,Caldicot School,Supplies & Services,"Equipment, Furniture and Materials",Materials & Consumables.,,14/03/2023,10/08/2023,24.75,,REDACTED DATA
Schools Total,School Group 7 � Pupil Capacity 501-1800,MCC Schools,Caldicot School,Supplies & Services,"Equipment, Furniture and Materials",Materials & Consumables.,,14/03/2023,10/08/2023,199.94,,REDACTED DATA
Schools Total,School Group 7 � Pupil Capacity 501-1800,MCC Schools,Caldicot School,Supplies & Services,"Equipment, Furniture and Materials",Materials & Consumables.,,14/03/2023,10/08/2023,182.83,,REDACTED DATA
Schools Total,School Group 7 � Pupil Capacity 501-1800,MCC Schools,Caldicot School,Supplies & Services,"Equipment, Furniture and Materials",Materials & Consumables.,,14/03/2023,10/08/2023,358.98,,REDACTED DATA
Schools Total,School Group 7 � Pupil Capacity 501-1800,MCC Schools,Caldicot School,Supplies & Services,"Equipment, Furniture and Materials",Materials & Consumables.,,14/03/2023,10/08/2023,47.82,,REDACTED DATA
Schools Total,School Group 7 � Pupil Capacity 501-1800,MCC Schools,Caldicot School,Supplies & Services,"Equipment, Furniture and Materials",Materials & Consumables.,,14/03/2023,10/08/2023,795,,REDACTED DATA
Schools Total,School Group 7 � Pupil Capacity 501-1800,MCC Schools,Caldicot School,Supplies & Services,"Equipment, Furniture and Materials",Materials & Consumables.,,14/03/2023,10/08/2023,86.4,,REDACTED DATA
Schools Total,School Group 7 � Pupil Capacity 501-1800,MCC Schools,Caldicot School,Supplies & Services,"Equipment, Furniture and Materials",Materials & Consumables.,,14/03/2023,10/08/2023,74.58,,REDACTED DATA
Schools Total,School Group 7 � Pupil Capacity 501-1800,MCC Schools,Caldicot School,Supplies & Services,"Equipment, Furniture and Materials",Materials & Consumables.,,14/03/2023,10/08/2023,10.2,,REDACTED DATA
Schools Total,School Group 7 � Pupil Capacity 501-1800,MCC Schools,Caldicot School,Supplies & Services,"Equipment, Furniture and Materials",Materials & Consumables.,,14/03/2023,10/08/2023,106.85,,REDACTED DATA
Schools Total,School Group 7 � Pupil Capacity 501-1800,MCC Schools,Caldicot School,Supplies & Services,"Equipment, Furniture and Materials",Materials & Consumables.,,14/03/2023,10/08/2023,50.69,,REDACTED DATA
Schools Total,School Group 7 � Pupil Capacity 501-1800,MCC Schools,Caldicot School,Supplies & Services,"Equipment, Furniture and Materials",Materials & Consumables.,,14/03/2023,10/08/2023,240,,REDACTED DATA
Capital Division,Capital Dept,Capital,Capital Programme,Premises,"Repairs, Alterations & Maintenance of Buildings",Building Improvements / Maintenance,,28/07/2023,10/08/2023,8480,,Bruynzeel Storage Systems Ltd
Schools Total,School Group 7 � Pupil Capacity 501-1800,MCC Schools,King Henry VIII Comprehensive,Premises,"Repairs, Alterations & Maintenance of Buildings",Building Improvements / Maintenance,,20/07/2023,10/08/2023,1895,,Griffiths Signs & Equipment Co.
Schools Total,School Group 7 � Pupil Capacity 501-1800,MCC Schools,King Henry VIII Comprehensive,Premises,"Repairs, Alterations & Maintenance of Buildings",Building Improvements / Maintenance,,31/07/2023,10/08/2023,220,,Griffiths Signs & Equipment Co.
Adult Services,Community Care Team,Social Care and Health,Monmouth Adult Team,Third Party Payments,Third Party,Personal Care.,,31/07/2023,10/08/2023,1332.48,,JSJ Supported Living Ltd
Adult Services,Community Care Team,Social Care and Health,Monmouth Adult Team,Third Party Payments,Third Party,Personal Care.,,31/07/2023,10/08/2023,194.24,,JSJ Supported Living Ltd
Schools Total,School Group 7 � Pupil Capacity 501-1800,MCC Schools,Caldicot School,Premises,"Repairs, Alterations & Maintenance of Buildings",Building Improvements / Maintenance,,26/07/2023,15/08/2023,884.7,,A J Quinn Building Contractors Ltd
Schools Total,School Group 2 � Pupil Capacity 144-314,MCC Schools,Dewstow Primary School,Premises,"Repairs, Alterations & Maintenance of Buildings",Building Improvements / Maintenance,,26/07/2023,15/08/2023,326.25,,A J Quinn Building Contractors Ltd
Schools Total,School Group 2 � Pupil Capacity 144-314,MCC Schools,Castle Park Primary School,Premises,"Repairs, Alterations & Maintenance of Buildings",Building Improvements / Maintenance,,26/07/2023,15/08/2023,44,,A J Quinn Building Contractors Ltd
Schools Total,School Group 7 � Pupil Capacity 501-1800,MCC Schools,Caldicot School,Supplies & Services,"Equipment, Furniture and Materials",Materials & Consumables.,,14/03/2023,10/08/2023,1.49,,REDACTED DATA
Schools Total,School Group 7 � Pupil Capacity 501-1800,MCC Schools,Caldicot School,Supplies & Services,"Equipment, Furniture and Materials",Materials & Consumables.,,14/03/2023,10/08/2023,7.46,,REDACTED DATA
Adult Services,Direct Care Residential,Social Care and Health,Mardy Park,Supplies & Services,"Equipment, Furniture and Materials",Equipment Purchases,,14/08/2023,25/08/2023,437.3,,REDACTED DATA
Adult Services,Direct Care,Social Care and Health,Care at Home,Supplies & Services,"Equipment, Furniture and Materials",Equipment Purchases,,14/08/2023,25/08/2023,94.63,,REDACTED DATA
Adult Services,Direct Care Residential,Social Care and Health,Mardy Park,Supplies & Services,Communications and Computing,Postages,,14/08/2023,25/08/2023,170.15,,REDACTED DATA
Neighbourhood Services,Highways,Communities & Place,Street Lighting,Third Party Payments,Third Party,Maintenance Contracts,,10/07/2023,07/08/2023,326.7,,Enerveo Ltd
Adult Services,Direct Care Residential,Social Care and Health,Mardy Park,Supplies & Services,"Equipment, Furniture and Materials",Provisions.,,14/08/2023,25/08/2023,12.78,,REDACTED DATA
Adult Services,Direct Care Residential,Social Care and Health,Mardy Park,Supplies & Services,"Equipment, Furniture and Materials",Provisions.,,14/08/2023,25/08/2023,124.43,,REDACTED DATA
Children Services,Children Services Teams,Social Care and Health,Long Term Support Team,Supplies & Services,Grants and Subscriptions,Disbursements,,04/08/2023,09/08/2023,1332.99,,REDACTED DATA
Children Services,Children Services Teams,Social Care and Health,Long Term Support Team,Supplies & Services,Grants and Subscriptions,Disbursements,,04/08/2023,09/08/2023,5.99,,REDACTED DATA
"Facilities, Fleet & Decarbonisation",Property Services -  Cleaning,Communities & Place,Building Cleaning,Employees,Indirect Employee Expenses,Staff Welfare,,28/07/2023,08/08/2023,50,,Redacted Data
Schools Total,School Group 1 � Pupil Capacity 1-143,MCC Schools,Ysgol Gymraeg Y Ffin,Employees,Indirect Employee Expenses,Staff Welfare,,28/07/2023,08/08/2023,50,,Redacted Data
Adult Services,Direct Care Residential,Social Care and Health,Mardy Park Resource Team,Employees,Indirect Employee Expenses,Staff Welfare,,31/07/2023,08/08/2023,100,,Redacted Data
Schools Total,School Group 2 � Pupil Capacity 144-314,MCC Schools,Thornwell Primary School,Employees,Indirect Employee Expenses,Staff Welfare,,28/07/2023,09/08/2023,50,,Redacted Data
"Leisure, Youth & Outdoor Adventure",Leisure Services,MonLife Directorate,Monmouth Leisure Centre,Employees,Indirect Employee Expenses,Staff Welfare,,28/07/2023,09/08/2023,50,,Redacted Data
Neighbourhood Services,Waste and Street Services,Communities & Place,Refuse & Cleansing Operations,Employees,Indirect Employee Expenses,Staff Welfare,,31/07/2023,09/08/2023,50,,Redacted Data
Schools Total,Schools,MCC Schools,Pupil Referral Unit,Employees,Indirect Employee Expenses,Staff Welfare,,31/07/2023,03/08/2023,150,,Redacted Data
"Facilities, Fleet & Decarbonisation",Home to School Transport Dept,Communities & Place,School Transport � External,Employees,Indirect Employee Expenses,Staff Welfare,,31/07/2023,03/08/2023,300,,Redacted Data
"Facilities, Fleet & Decarbonisation",Transport Department,Communities & Place,Transport,Transport,Direct Transport Costs,All Other Non-Contract Transport Work.,,26/06/2023,15/08/2023,434.2,,Glenside Commercials Ltd
"Facilities, Fleet & Decarbonisation",Transport Planning,Communities & Place,Public Transport Subsidy Grant,Transport,Public Transport,Travel Concessions,,08/08/2023,15/08/2023,850.51,,Stagecoach Services Ltd
"Facilities, Fleet & Decarbonisation",Transport Planning,Communities & Place,Public Transport Subsidy Grant,Transport,Public Transport,Travel Concessions,,08/08/2023,15/08/2023,7018.41,,Stagecoach Services Ltd
"Commercial, Corporate & landlord Services",Property Services & Facilities Management,Resources,Programmed Maintenance,Premises,"Repairs, Alterations & Maintenance of Buildings",Premises Repairs And Maintenance,,18/08/2023,22/08/2023,145.8,,Lorne Stewart  Plc
"Commercial, Corporate & landlord Services",Property Services & Facilities Management,Resources,Programmed Maintenance,Premises,"Repairs, Alterations & Maintenance of Buildings",Premises Repairs And Maintenance,,18/08/2023,22/08/2023,145.8,,Lorne Stewart  Plc
"Facilities, Fleet & Decarbonisation",Transport Department,Communities & Place,Transport,Transport,Direct Transport Costs,All Other Non-Contract Transport Work.,,04/07/2023,15/08/2023,115,,Btac Bristol Ltd
"Commercial, Corporate & landlord Services",Property Services & Facilities Management,Resources,Programmed Maintenance,Premises,"Repairs, Alterations & Maintenance of Buildings",Premises Repairs And Maintenance,,16/12/2022,15/08/2023,2096,,Newport City Council
"Facilities, Fleet & Decarbonisation",Transport Planning,Communities & Place,Public Transport Subsidy Grant,Transport,Public Transport,Bus Subsidies,,24/07/2023,15/08/2023,29453.59,,New Adventure Travel
"Facilities, Fleet & Decarbonisation",Transport Planning,Communities & Place,Public Transport Subsidy Grant,Transport,Public Transport,Bus Subsidies,,31/07/2023,15/08/2023,8644.18,,New Adventure Travel
"Facilities, Fleet & Decarbonisation",Transport Planning,Communities & Place,Public Transport Subsidy Grant,Transport,Public Transport,Travel Concessions,,24/07/2023,15/08/2023,3090.51,,New Adventure Travel
"Facilities, Fleet & Decarbonisation",Transport Planning,Communities & Place,Public Transport Subsidy Grant,Transport,Public Transport,Travel Concessions,,31/07/2023,15/08/2023,1090.12,,New Adventure Travel
"Facilities, Fleet & Decarbonisation",Transport Planning,Communities & Place,Public Transport Subsidy Grant,Transport,Public Transport,Travel Concessions,,31/07/2023,15/08/2023,11629.74,,Newport Transport Ltd
"Facilities, Fleet & Decarbonisation",Transport Planning,Communities & Place,Public Transport Subsidy Grant,Transport,Public Transport,Travel Concessions,,31/07/2023,15/08/2023,3876.1,,Newport Transport Ltd
"Commercial, Corporate & landlord Services",Property Services & Facilities Management,Resources,Programmed Maintenance,Premises,"Repairs, Alterations & Maintenance of Buildings",Premises Repairs And Maintenance,,14/08/2023,17/08/2023,345,,Industrial Door Services
"Commercial, Corporate & landlord Services",Property Services & Facilities Management,Resources,Programmed Maintenance,Premises,"Repairs, Alterations & Maintenance of Buildings",Premises Repairs And Maintenance,,14/08/2023,17/08/2023,165,,Industrial Door Services
People,People Services,People & Governance,HR Recruitment Support,Employees,Indirect Employee Expenses,Staff Welfare,,31/07/2023,03/08/2023,100,,Redacted Data
People,Innovation,People & Governance,Organisational Development,Employees,Indirect Employee Expenses,Staff Welfare,,28/07/2023,03/08/2023,50,,Redacted Data
"Policy, Scrutiny & Customer Service",Ukraine,Chief Executive's Unit,Ukrainian Welcome Centre,Employees,Indirect Employee Expenses,Staff Welfare,,28/07/2023,03/08/2023,50,,Redacted Data
Children Services,Children Services Other,Social Care and Health,InFaCT,Employees,Indirect Employee Expenses,Staff Welfare,,28/07/2023,03/08/2023,50,,Redacted Data
Adult Services,Day Centres,Social Care and Health,My Day,Employees,Indirect Employee Expenses,Staff Welfare,,28/07/2023,03/08/2023,100,,Redacted Data
Adult Services,Direct Care Residential,Social Care and Health,Mardy Park,Employees,Indirect Employee Expenses,Staff Welfare,,28/07/2023,03/08/2023,50,,Redacted Data
"Facilities, Fleet & Decarbonisation",Catering Services,Communities & Place,Schools Catering,Employees,Indirect Employee Expenses,Staff Welfare,,28/07/2023,03/08/2023,50,,Redacted Data
Neighbourhood Services,Highways,Communities & Place,Overhead - Mon Highways,Transport,Direct Transport Costs,All Other Non-Contract Transport Work.,,09/08/2023,29/08/2023,100.5,,Fast Fluid Power Ltd
"Commercial, Corporate & landlord Services",Property Services & Facilities Management,Resources,Programmed Maintenance,Premises,"Repairs, Alterations & Maintenance of Buildings",Premises Repairs And Maintenance,,30/06/2023,29/08/2023,601,,Enviroteq
Standards,Early Years,Children & Young People,Flying Start Grant,Employees,Indirect Employee Expenses,Staff Welfare,,28/07/2023,03/08/2023,50,,Redacted Data
"Policy, Scrutiny & Customer Service",Community Hubs,Chief Executive's Unit,Strategic Management,Employees,Indirect Employee Expenses,Staff Welfare,,28/07/2023,03/08/2023,150,,Redacted Data
Schools Total,School Group 2 � Pupil Capacity 144-314,MCC Schools,Osbaston CiW Primary School (VC),Employees,Indirect Employee Expenses,Staff Welfare,,28/07/2023,03/08/2023,100,,Redacted Data
Schools Total,School Group 2 � Pupil Capacity 144-314,MCC Schools,Pembroke Primary School,Employees,Indirect Employee Expenses,Staff Welfare,,28/07/2023,03/08/2023,50,,Redacted Data
Schools Total,SCHGRP3 � School Group 3 � Pupil Capacity 315-500,MCC Schools,The Dell Primary School,Employees,Indirect Employee Expenses,Staff Welfare,,28/07/2023,03/08/2023,50,,Redacted Data
Schools Total,School Group 7 � Pupil Capacity 501-1800,MCC Schools,Caldicot School,Employees,Indirect Employee Expenses,Staff Welfare,,28/07/2023,03/08/2023,100,,Redacted Data
Capital Division,Capital Dept,Capital,Capital Programme,Premises,"Repairs, Alterations & Maintenance of Buildings",Building Improvements / Maintenance,,18/08/2023,29/08/2023,500,,HSL Compliance Ltd
Schools Total,School Group 1 � Pupil Capacity 1-143,MCC Schools,Llanvihangel Crucorney Primary School,Premises,"Repairs, Alterations & Maintenance of Buildings",Building Improvements / Maintenance,,30/07/2023,29/08/2023,59.92,,Lorne Stewart  Plc
Schools Total,School Group 7 � Pupil Capacity 501-1800,MCC Schools,King Henry VIII Comprehensive,Employees,Indirect Employee Expenses,Staff Welfare,,28/07/2023,03/08/2023,50,,Redacted Data
SCH Support,Grant Schemes SHS,Social Care and Health,Training,Employees,Indirect Employee Expenses,Staff Welfare,,28/07/2023,03/08/2023,50,,Redacted Data
Schools Total,School Group 7 � Pupil Capacity 501-1800,MCC Schools,Caldicot School,Transport,Direct Transport Costs,Diesel,,14/03/2023,10/08/2023,72.44,,REDACTED DATA
Schools Total,School Group 7 � Pupil Capacity 501-1800,MCC Schools,Caldicot School,Transport,Direct Transport Costs,Diesel,,14/03/2023,10/08/2023,31.18,,REDACTED DATA
Schools Total,School Group 7 � Pupil Capacity 501-1800,MCC Schools,Caldicot School,Transport,Direct Transport Costs,Diesel,,14/03/2023,10/08/2023,77.73,,REDACTED DATA
Schools Total,School Group 7 � Pupil Capacity 501-1800,MCC Schools,Caldicot School,Transport,Direct Transport Costs,Diesel,,14/03/2023,10/08/2023,57.93,,REDACTED DATA
Neighbourhood Services,Waste and Street Services,Communities & Place,Refuse & Cleansing Operations,Employees,Indirect Employee Expenses,Staff Welfare,,28/07/2023,03/08/2023,50,,Redacted Data
"Facilities, Fleet & Decarbonisation",Home to School Transport Dept,Communities & Place,Home To School Transport,Employees,Indirect Employee Expenses,Staff Welfare,,28/07/2023,03/08/2023,50,,Redacted Data
Adult Services,Direct Care,Social Care and Health,Care at Home,Employees,Indirect Employee Expenses,Staff Welfare,,28/07/2023,03/08/2023,50,,Redacted Data
Neighbourhood Services,Highways,Communities & Place,Street Lighting,Third Party Payments,Third Party,Maintenance Contracts,,10/07/2023,07/08/2023,326.7,,Enerveo Ltd
Neighbourhood Services,Highways,Communities & Place,Street Lighting,Third Party Payments,Third Party,Maintenance Contracts,,10/07/2023,07/08/2023,326.7,,Enerveo Ltd
Neighbourhood Services,Highways,Communities & Place,Street Lighting,Third Party Payments,Third Party,Maintenance Contracts,,10/07/2023,07/08/2023,326.7,,Enerveo Ltd
Neighbourhood Services,Highways,Communities & Place,Street Lighting,Third Party Payments,Third Party,Maintenance Contracts,,10/07/2023,07/08/2023,326.7,,Enerveo Ltd
Neighbourhood Services,Highways,Communities & Place,Street Lighting,Third Party Payments,Third Party,Maintenance Contracts,,10/07/2023,07/08/2023,326.7,,Enerveo Ltd
Adult Services,Direct Care,Social Care and Health,Care at Home,Employees,Indirect Employee Expenses,Staff Welfare,,28/07/2023,03/08/2023,100,,Redacted Data
Public Protection,Public Protection,Social Care and Health,Trading Standards Management,Employees,Indirect Employee Expenses,Staff Welfare,,28/07/2023,03/08/2023,100,,Redacted Data
"Enterprise, Housing & Community Animation",Business Growth & Enterprise,Communities & Place,Employment & Skills,Employees,Indirect Employee Expenses,Staff Welfare,,28/07/2023,03/08/2023,100,,Redacted Data
SCH Support,Finance (SHS),Social Care and Health,Finance,Employees,Indirect Employee Expenses,Staff Welfare,,28/07/2023,03/08/2023,50,,Redacted Data
Children Services,Children Services Teams,Social Care and Health,Family Support and Protection Team - South,Employees,Indirect Employee Expenses,Staff Welfare,,28/07/2023,03/08/2023,100,,Redacted Data
Schools Total,School Group 2 � Pupil Capacity 144-314,MCC Schools,Kymin View Primary School,Employees,Indirect Employee Expenses,Staff Welfare,,28/07/2023,03/08/2023,50,,Redacted Data
"Policy, Scrutiny & Customer Service",Community Education,Chief Executive's Unit,Community Education Adult General,Employees,Indirect Employee Expenses,Staff Welfare,,28/07/2023,03/08/2023,100,,Redacted Data
"Leisure, Youth & Outdoor Adventure",Youth & Education,MonLife Directorate,Community Education Youth General,Employees,Indirect Employee Expenses,Staff Welfare,,28/07/2023,03/08/2023,50,,Redacted Data
"Leisure, Youth & Outdoor Adventure",Youth & Education,MonLife Directorate,Community Education Youth General,Employees,Indirect Employee Expenses,Staff Welfare,,28/07/2023,03/08/2023,100,,Redacted Data
Standards,Additional Learning Needs,Children & Young People,Additional Learning Needs Administration Service,Employees,Indirect Employee Expenses,Staff Welfare,,28/07/2023,03/08/2023,50,,Redacted Data
Neighbourhood Services,Highways,Communities & Place,Street Lighting,Third Party Payments,Third Party,Maintenance Contracts,,10/07/2023,07/08/2023,326.7,,Enerveo Ltd
Neighbourhood Services,Highways,Communities & Place,Street Lighting,Third Party Payments,Third Party,Maintenance Contracts,,10/07/2023,07/08/2023,326.7,,Enerveo Ltd
Neighbourhood Services,Highways,Communities & Place,Street Lighting,Third Party Payments,Third Party,Maintenance Contracts,,10/07/2023,07/08/2023,326.7,,Enerveo Ltd
Neighbourhood Services,Highways,Communities & Place,Street Lighting,Third Party Payments,Third Party,Maintenance Contracts,,10/07/2023,07/08/2023,326.7,,Enerveo Ltd
Finance,Revenues Department,Resources,Council Tax & NNDR Administration,Supplies & Services,Services,Financial products and services general fees and charges,,19/07/2023,02/08/2023,-2514.63,,B & S Bailiff Services
Finance,Revenues Department,Resources,Council Tax & NNDR Administration,Supplies & Services,Services,Financial products and services general fees and charges,,19/07/2023,02/08/2023,2514.63,,B & S Bailiff Services
Finance,Revenues Department,Resources,Council Tax & NNDR Administration,Supplies & Services,Services,Financial products and services general fees and charges,,19/07/2023,02/08/2023,205.23,,B & S Bailiff Services
"Commercial, Corporate & landlord Services",Property Services & Facilities Management,Resources,Programmed Maintenance,Premises,"Repairs, Alterations & Maintenance of Buildings",Premises Repairs And Maintenance,,18/08/2023,22/08/2023,264.6,,Lorne Stewart  Plc
"Facilities, Fleet & Decarbonisation",Transport Planning,Communities & Place,Public Transport Subsidy Grant,Transport,Public Transport,Travel Concessions,,03/08/2023,15/08/2023,9100,,Stagecoach Services Ltd
Standards,Inclusions,Children & Young People,ALN Management,Employees,Indirect Employee Expenses,Staff Welfare,,28/07/2023,03/08/2023,50,,Redacted Data
Children Services,Children Services Other,Social Care and Health,External Placements - CLA,Third Party Payments,Third Party,Fostering/Adoption Allowances,,31/07/2023,10/08/2023,3875,,National Fostering Agency
"Commercial, Corporate & landlord Services",Property Services & Facilities Management,Resources,Programmed Maintenance,Premises,"Repairs, Alterations & Maintenance of Buildings",Premises Repairs And Maintenance,,18/08/2023,22/08/2023,199.8,,Lorne Stewart  Plc
Finance,Revenues Department,Resources,Council Tax & NNDR Administration,Supplies & Services,Services,Financial products and services general fees and charges,,19/07/2023,02/08/2023,15.69,,B & S Bailiff Services
Finance,Revenues Department,Resources,Council Tax & NNDR Administration,Supplies & Services,Services,Financial products and services general fees and charges,,19/07/2023,02/08/2023,-15.69,,B & S Bailiff Services
Adult Services,Community Care Team,Social Care and Health,Mental Health Care Team,Third Party Payments,Third Party,Personal Care.,,04/08/2023,04/08/2023,1499.29,,REDACTED PERSONAL DATA
Children Services,Children Services Teams,Social Care and Health,Disabled Children,Third Party Payments,Third Party,Personal Care.,,05/08/2023,07/08/2023,7.64,,REDACTED PERSONAL DATA
Children Services,Children Services Teams,Social Care and Health,Disabled Children,Third Party Payments,Third Party,Personal Care.,,05/08/2023,07/08/2023,10.19,,REDACTED PERSONAL DATA
Adult Services,ADULT DISABILITY SERVICES,Social Care and Health,CLDT,Third Party Payments,Third Party,Personal Care.,,05/08/2023,07/08/2023,15.71,,REDACTED PERSONAL DATA
Adult Services,ADULT DISABILITY SERVICES,Social Care and Health,CLDT,Third Party Payments,Third Party,Personal Care.,,05/08/2023,07/08/2023,24.97,,REDACTED PERSONAL DATA
Adult Services,ADULT DISABILITY SERVICES,Social Care and Health,CLDT,Third Party Payments,Third Party,Personal Care.,,05/08/2023,07/08/2023,11.76,,REDACTED PERSONAL DATA
Adult Services,ADULT DISABILITY SERVICES,Social Care and Health,CLDT,Third Party Payments,Third Party,Personal Care.,,05/08/2023,07/08/2023,85.79,,REDACTED PERSONAL DATA
Adult Services,ADULT DISABILITY SERVICES,Social Care and Health,CLDT,Third Party Payments,Third Party,Personal Care.,,05/08/2023,07/08/2023,44.69,,REDACTED PERSONAL DATA
Adult Services,ADULT DISABILITY SERVICES,Social Care and Health,CLDT,Third Party Payments,Third Party,Personal Care.,,16/08/2023,16/08/2023,699.36,,REDACTED PERSONAL DATA
Schools Total,School Group 7 � Pupil Capacity 501-1800,MCC Schools,King Henry VIII Comprehensive,Supplies & Services,"Equipment, Furniture and Materials",Equipment Purchases,,26/07/2023,10/08/2023,9.1,,Hope Education Ltd
Schools Total,School Group 7 � Pupil Capacity 501-1800,MCC Schools,King Henry VIII Comprehensive,Supplies & Services,"Equipment, Furniture and Materials",Equipment Purchases,,26/07/2023,10/08/2023,7.22,,Hope Education Ltd
Schools Total,School Group 7 � Pupil Capacity 501-1800,MCC Schools,King Henry VIII Comprehensive,Supplies & Services,"Equipment, Furniture and Materials",Equipment Purchases,,26/07/2023,10/08/2023,19.49,,Hope Education Ltd
Schools Total,School Group 7 � Pupil Capacity 501-1800,MCC Schools,King Henry VIII Comprehensive,Supplies & Services,"Equipment, Furniture and Materials",Equipment Purchases,,26/07/2023,10/08/2023,5.7,,Hope Education Ltd
Schools Total,School Group 7 � Pupil Capacity 501-1800,MCC Schools,King Henry VIII Comprehensive,Supplies & Services,"Equipment, Furniture and Materials",Equipment Purchases,,26/07/2023,10/08/2023,5.61,,Hope Education Ltd
Schools Total,School Group 7 � Pupil Capacity 501-1800,MCC Schools,King Henry VIII Comprehensive,Supplies & Services,"Equipment, Furniture and Materials",Equipment Purchases,,26/07/2023,10/08/2023,5.61,,Hope Education Ltd
Schools Total,School Group 7 � Pupil Capacity 501-1800,MCC Schools,King Henry VIII Comprehensive,Supplies & Services,"Equipment, Furniture and Materials",Equipment Purchases,,26/07/2023,10/08/2023,12.72,,Hope Education Ltd
Schools Total,School Group 7 � Pupil Capacity 501-1800,MCC Schools,King Henry VIII Comprehensive,Supplies & Services,"Equipment, Furniture and Materials",Equipment Purchases,,26/07/2023,10/08/2023,5.4,,Hope Education Ltd
Schools Total,School Group 7 � Pupil Capacity 501-1800,MCC Schools,King Henry VIII Comprehensive,Supplies & Services,"Equipment, Furniture and Materials",Equipment Purchases,,26/07/2023,10/08/2023,1.22,,Hope Education Ltd
Schools Total,School Group 7 � Pupil Capacity 501-1800,MCC Schools,King Henry VIII Comprehensive,Supplies & Services,"Equipment, Furniture and Materials",Equipment Purchases,,26/07/2023,10/08/2023,2.8,,Hope Education Ltd
Schools Total,School Group 7 � Pupil Capacity 501-1800,MCC Schools,King Henry VIII Comprehensive,Supplies & Services,"Equipment, Furniture and Materials",Equipment Purchases,,26/07/2023,10/08/2023,7.98,,Hope Education Ltd
Schools Total,School Group 7 � Pupil Capacity 501-1800,MCC Schools,King Henry VIII Comprehensive,Supplies & Services,"Equipment, Furniture and Materials",Equipment Purchases,,26/07/2023,10/08/2023,19.7,,Hope Education Ltd
Neighbourhood Services,Highways,Communities & Place,Street Lighting,Third Party Payments,Third Party,Maintenance Contracts,,10/07/2023,07/08/2023,326.7,,Enerveo Ltd
Capital Division,Capital Dept,Capital,Capital Programme,Premises,"Repairs, Alterations & Maintenance of Buildings",Building Improvements / Maintenance,,18/08/2023,29/08/2023,21000,,HSL Compliance Ltd
Appropriations,Appropriations,Appropriations,Attributable Costs - Fixed Asset Disposal,Premises,"Repairs, Alterations & Maintenance of Buildings",Building Improvements / Maintenance,,25/07/2023,15/08/2023,110.16,,A J Quinn Building Contractors Ltd
"Enterprise, Housing & Community Animation",General Fund Housing,Communities & Place,Lodgings Scheme,Premises,"Repairs, Alterations & Maintenance of Buildings",Building Improvements / Maintenance,,26/07/2023,10/08/2023,180,,Highmore Facilities Ltd
Adult Services,ADULT DISABILITY SERVICES,Social Care and Health,CLDT,Third Party Payments,Third Party,Personal Care.,,16/08/2023,16/08/2023,387.72,,REDACTED PERSONAL DATA
Adult Services,Community Care Team,Social Care and Health,Mental Health Care Team,Third Party Payments,Third Party,Personal Care.,,16/08/2023,16/08/2023,1157.12,,REDACTED PERSONAL DATA
Finance & Business Devlopment,Attractions,MonLife Directorate,Old Station Tintern,Supplies & Services,Catering,Cafe,,25/07/2023,22/08/2023,33.45,,REDACTED PERSONAL DATA
Finance & Business Devlopment,Attractions,MonLife Directorate,Old Station Tintern,Supplies & Services,Catering,Cafe,,26/07/2023,22/08/2023,27.55,,REDACTED PERSONAL DATA
Finance & Business Devlopment,Attractions,MonLife Directorate,Old Station Tintern,Supplies & Services,Catering,Cafe,,27/07/2023,22/08/2023,27.55,,REDACTED PERSONAL DATA
Finance & Business Devlopment,Attractions,MonLife Directorate,Old Station Tintern,Supplies & Services,Catering,Cafe,,28/07/2023,22/08/2023,33.45,,REDACTED PERSONAL DATA
Finance & Business Devlopment,Attractions,MonLife Directorate,Old Station Tintern,Supplies & Services,Catering,Cafe,,29/07/2023,22/08/2023,83.5,,REDACTED PERSONAL DATA
Finance & Business Devlopment,Attractions,MonLife Directorate,Old Station Tintern,Supplies & Services,Catering,Cafe,,31/07/2023,22/08/2023,22.35,,REDACTED PERSONAL DATA
Finance & Business Devlopment,Attractions,MonLife Directorate,Old Station Tintern,Supplies & Services,Catering,Cafe,,08/07/2023,22/08/2023,101.2,,REDACTED PERSONAL DATA
Finance & Business Devlopment,Attractions,MonLife Directorate,Old Station Tintern,Supplies & Services,Catering,Cafe,,10/07/2023,22/08/2023,27.55,,REDACTED PERSONAL DATA
Finance & Business Devlopment,Attractions,MonLife Directorate,Old Station Tintern,Supplies & Services,Catering,Cafe,,12/07/2023,22/08/2023,70,,REDACTED PERSONAL DATA
Neighbourhood Services,Highways,Communities & Place,Street Lighting,Third Party Payments,Third Party,Maintenance Contracts,,10/07/2023,07/08/2023,326.7,,Enerveo Ltd
Neighbourhood Services,Highways,Communities & Place,Street Lighting,Third Party Payments,Third Party,Maintenance Contracts,,10/07/2023,07/08/2023,326.7,,Enerveo Ltd
Neighbourhood Services,Highways,Communities & Place,Street Lighting,Third Party Payments,Third Party,Maintenance Contracts,,10/07/2023,07/08/2023,326.7,,Enerveo Ltd
Neighbourhood Services,Highways,Communities & Place,Street Lighting,Third Party Payments,Third Party,Maintenance Contracts,,10/07/2023,07/08/2023,326.7,,Enerveo Ltd
Neighbourhood Services,Highways,Communities & Place,Street Lighting,Third Party Payments,Third Party,Maintenance Contracts,,10/07/2023,07/08/2023,326.7,,Enerveo Ltd
Neighbourhood Services,Highways,Communities & Place,Street Lighting,Third Party Payments,Third Party,Maintenance Contracts,,10/07/2023,07/08/2023,326.7,,Enerveo Ltd
Neighbourhood Services,Highways,Communities & Place,Street Lighting,Third Party Payments,Third Party,Maintenance Contracts,,10/07/2023,07/08/2023,326.7,,Enerveo Ltd
Finance & Business Devlopment,Attractions,MonLife Directorate,Old Station Tintern,Supplies & Services,Catering,Cafe,,14/07/2023,22/08/2023,32.05,,REDACTED PERSONAL DATA
Finance & Business Devlopment,Attractions,MonLife Directorate,Old Station Tintern,Supplies & Services,Catering,Cafe,,15/07/2023,22/08/2023,89.4,,REDACTED PERSONAL DATA
Finance & Business Devlopment,Attractions,MonLife Directorate,Old Station Tintern,Supplies & Services,Catering,Cafe,,24/07/2023,22/08/2023,37.25,,REDACTED PERSONAL DATA
Children Services,Children Services Other,Social Care and Health,Face to Face Counselling,Supplies & Services,Services,Professional And Specialist Fees,,11/08/2023,15/08/2023,200,,REDACTED PERSONAL DATA
"Facilities, Fleet & Decarbonisation",Catering Services,Communities & Place,Schools Catering,Supplies & Services,"Equipment, Furniture and Materials",Materials & Consumables.,,01/07/2023,29/08/2023,29,,REDACTED PERSONAL DATA
Adult Services,Community Care Team,Social Care and Health,Mental Health Care Team,Third Party Payments,Third Party,Personal Care.,,16/08/2023,16/08/2023,1791.4,,REDACTED PERSONAL DATA
Schools Total,School Group 1 � Pupil Capacity 1-143,MCC Schools,Llanvihangel Crucorney Primary School,Transport,Contract Hire and Operating Leases,Vehicle Hire Charge,,18/07/2023,29/08/2023,150,,REDACTED PERSONAL DATA
Children Services,Children Services Teams,Social Care and Health,Disabled Children,Third Party Payments,Third Party,Personal Care.,,05/08/2023,07/08/2023,4.78,,REDACTED PERSONAL DATA
Children Services,Children Services Teams,Social Care and Health,Disabled Children,Third Party Payments,Third Party,Personal Care.,,05/08/2023,07/08/2023,4.78,,REDACTED PERSONAL DATA
Children Services,Children Services Teams,Social Care and Health,Disabled Children,Third Party Payments,Third Party,Personal Care.,,05/08/2023,07/08/2023,8.26,,REDACTED PERSONAL DATA
Adult Services,Community Care Team,Social Care and Health,Mental Health Care Team,Third Party Payments,Third Party,Personal Care.,,05/08/2023,07/08/2023,122.44,,REDACTED PERSONAL DATA
Adult Services,Community Care Team,Social Care and Health,Mental Health Care Team,Third Party Payments,Third Party,Personal Care.,,05/08/2023,07/08/2023,159.38,,REDACTED PERSONAL DATA
Adult Services,Community Care Team,Social Care and Health,Mental Health Care Team,Third Party Payments,Third Party,Personal Care.,,16/08/2023,16/08/2023,2868.4,,REDACTED PERSONAL DATA
Adult Services,Community Care Team,Social Care and Health,Mental Health Care Team,Third Party Payments,Third Party,Personal Care.,,16/08/2023,16/08/2023,501.04,,REDACTED PERSONAL DATA
Adult Services,ADULT DISABILITY SERVICES,Social Care and Health,CLDT,Third Party Payments,Third Party,Personal Care.,,16/08/2023,16/08/2023,619.4,,REDACTED PERSONAL DATA
Adult Services,ADULT DISABILITY SERVICES,Social Care and Health,CLDT,Third Party Payments,Third Party,Personal Care.,,16/08/2023,16/08/2023,619.28,,REDACTED PERSONAL DATA
Adult Services,ADULT DISABILITY SERVICES,Social Care and Health,CLDT,Third Party Payments,Third Party,Personal Care.,,16/08/2023,16/08/2023,187.96,,REDACTED PERSONAL DATA
Adult Services,ADULT DISABILITY SERVICES,Social Care and Health,CLDT,Third Party Payments,Third Party,Personal Care.,,05/08/2023,07/08/2023,10.19,,REDACTED PERSONAL DATA
Adult Services,Community Care Team,Social Care and Health,Mental Health Care Team,Third Party Payments,Third Party,Personal Care.,,05/08/2023,07/08/2023,102.44,,REDACTED PERSONAL DATA
Adult Services,Community Care Team,Social Care and Health,Mental Health Care Team,Third Party Payments,Third Party,Personal Care.,,05/08/2023,07/08/2023,22.73,,REDACTED PERSONAL DATA
Adult Services,Community Care Team,Social Care and Health,Mental Health Care Team,Third Party Payments,Third Party,Personal Care.,,16/08/2023,16/08/2023,636.44,,REDACTED PERSONAL DATA
Adult Services,ADULT DISABILITY SERVICES,Social Care and Health,CLDT,Third Party Payments,Third Party,Personal Care.,,16/08/2023,16/08/2023,754.56,,REDACTED PERSONAL DATA
Adult Services,ADULT DISABILITY SERVICES,Social Care and Health,CLDT,Third Party Payments,Third Party,Personal Care.,,16/08/2023,16/08/2023,608.92,,REDACTED PERSONAL DATA
Adult Services,ADULT DISABILITY SERVICES,Social Care and Health,CLDT,Third Party Payments,Third Party,Personal Care.,,16/08/2023,16/08/2023,548,,REDACTED PERSONAL DATA
Adult Services,ADULT DISABILITY SERVICES,Social Care and Health,CLDT,Third Party Payments,Third Party,Personal Care.,,16/08/2023,16/08/2023,846.08,,REDACTED PERSONAL DATA
Neighbourhood Services,Highways,Communities & Place,Street Lighting,Third Party Payments,Third Party,Maintenance Contracts,,10/07/2023,07/08/2023,326.7,,Enerveo Ltd
Neighbourhood Services,Highways,Communities & Place,Street Lighting,Third Party Payments,Third Party,Maintenance Contracts,,10/07/2023,07/08/2023,326.7,,Enerveo Ltd
Neighbourhood Services,Highways,Communities & Place,Street Lighting,Third Party Payments,Third Party,Maintenance Contracts,,10/07/2023,07/08/2023,410.25,,Enerveo Ltd
Neighbourhood Services,Highways,Communities & Place,Street Lighting,Third Party Payments,Third Party,Maintenance Contracts,,10/07/2023,07/08/2023,821.14,,Enerveo Ltd
Neighbourhood Services,Highways,Communities & Place,Street Lighting,Third Party Payments,Third Party,Maintenance Contracts,,10/07/2023,07/08/2023,60,,Enerveo Ltd
Neighbourhood Services,Highways,Communities & Place,Street Lighting,Third Party Payments,Third Party,Maintenance Contracts,,12/07/2023,07/08/2023,60,,Enerveo Ltd
Schools Total,School Group 2 � Pupil Capacity 144-314,MCC Schools,Llantilio Pertholey CiW Primary School (VC),Premises,"Repairs, Alterations & Maintenance of Buildings",Building Improvements / Maintenance,,18/08/2023,22/08/2023,384.77,,Lorne Stewart  Plc
Schools Total,School Group 2 � Pupil Capacity 144-314,MCC Schools,Thornwell Primary School,Premises,"Repairs, Alterations & Maintenance of Buildings",Building Improvements / Maintenance,,18/08/2023,22/08/2023,59.92,,Lorne Stewart  Plc
Schools Total,School Group 2 � Pupil Capacity 144-314,MCC Schools,Trellech Primary School,Premises,"Repairs, Alterations & Maintenance of Buildings",Building Improvements / Maintenance,,18/08/2023,22/08/2023,335.64,,Lorne Stewart  Plc
Schools Total,SCHGRP3 � School Group 3 � Pupil Capacity 315-500,MCC Schools,Deri View Primary School,Premises,"Repairs, Alterations & Maintenance of Buildings",Building Improvements / Maintenance,,18/08/2023,22/08/2023,59.92,,Lorne Stewart  Plc
Neighbourhood Services,Highways,Communities & Place,Pumping stations,Supplies & Services,"Equipment, Furniture and Materials",Repairs & Maintenance.,,16/06/2023,10/08/2023,786,,KPR Engineering (M&E) Ltd
Neighbourhood Services,Highways,Communities & Place,Pumping stations,Supplies & Services,"Equipment, Furniture and Materials",Repairs & Maintenance.,,27/04/2023,10/08/2023,861,,KPR Engineering (M&E) Ltd
Adult Services,Community Care Team,Social Care and Health,Abergavenny Adult Team,Third Party Payments,Third Party,Personal Care.,,24/07/2023,10/08/2023,13.87,,Allied Healthcare Services Limited
Schools Total,School Group 7 � Pupil Capacity 501-1800,MCC Schools,King Henry VIII Comprehensive,Supplies & Services,"Equipment, Furniture and Materials",Equipment Purchases,,26/07/2023,10/08/2023,10.23,,Hope Education Ltd
Schools Total,School Group 7 � Pupil Capacity 501-1800,MCC Schools,King Henry VIII Comprehensive,Supplies & Services,"Equipment, Furniture and Materials",Equipment Purchases,,26/07/2023,10/08/2023,11.76,,Hope Education Ltd
Schools Total,School Group 7 � Pupil Capacity 501-1800,MCC Schools,King Henry VIII Comprehensive,Supplies & Services,"Equipment, Furniture and Materials",Equipment Purchases,,26/07/2023,10/08/2023,5.09,,Hope Education Ltd
Children Services,Children Services Other,Social Care and Health,External Placements - CLA,Third Party Payments,Third Party,Fostering/Adoption Allowances,,01/08/2023,11/08/2023,3933.28,,Foster Care Associates Limited (FCA)
Children Services,Children Services Other,Social Care and Health,External Placements - CLA,Third Party Payments,Third Party,Fostering/Adoption Allowances,,01/08/2023,11/08/2023,4224.37,,Foster Care Associates Limited (FCA)
Children Services,Children Services Other,Social Care and Health,External Placements - CLA,Third Party Payments,Third Party,Fostering/Adoption Allowances,,01/08/2023,11/08/2023,3902.28,,Foster Care Associates Limited (FCA)
Children Services,Children Services Other,Social Care and Health,External Placements - CLA,Third Party Payments,Third Party,Fostering/Adoption Allowances,,01/08/2023,11/08/2023,3789.75,,Foster Care Associates Limited (FCA)
Children Services,Children Services Other,Social Care and Health,External Placements - CLA,Third Party Payments,Third Party,Fostering/Adoption Allowances,,01/08/2023,11/08/2023,7065.52,,Foster Care Associates Limited (FCA)
Children Services,Children Services Other,Social Care and Health,External Placements - CLA,Third Party Payments,Third Party,Fostering/Adoption Allowances,,31/08/2023,11/08/2023,3575.54,,Pathway Care Ltd T/A Calon Cymru
Children Services,Children Services Other,Social Care and Health,External Placements - CLA,Third Party Payments,Third Party,Fostering/Adoption Allowances,,31/08/2023,11/08/2023,3554.27,,Pathway Care Ltd T/A Calon Cymru
Children Services,Children Services Other,Social Care and Health,External Placements - CLA,Third Party Payments,Third Party,Fostering/Adoption Allowances,,31/08/2023,11/08/2023,3909.72,,Pathway Care Ltd T/A Calon Cymru
Children Services,Children Services Other,Social Care and Health,External Placements - CLA,Third Party Payments,Third Party,Fostering/Adoption Allowances,,31/08/2023,11/08/2023,5198.7,,Pathway Care Ltd T/A Calon Cymru
"Commercial, Corporate & landlord Services",Property Services & Facilities Management,Resources,Programmed Maintenance,Premises,"Repairs, Alterations & Maintenance of Buildings",Premises Repairs And Maintenance,,18/08/2023,22/08/2023,70.2,,Lorne Stewart  Plc
"Commercial, Corporate & landlord Services",Property Services & Facilities Management,Resources,Programmed Maintenance,Premises,"Repairs, Alterations & Maintenance of Buildings",Premises Repairs And Maintenance,,18/08/2023,22/08/2023,210.6,,Lorne Stewart  Plc
"Commercial, Corporate & landlord Services",Property Services & Facilities Management,Resources,Programmed Maintenance,Premises,"Repairs, Alterations & Maintenance of Buildings",Premises Repairs And Maintenance,,18/08/2023,22/08/2023,145.8,,Lorne Stewart  Plc
"Commercial, Corporate & landlord Services",Property Services & Facilities Management,Resources,Programmed Maintenance,Premises,"Repairs, Alterations & Maintenance of Buildings",Premises Repairs And Maintenance,,18/08/2023,22/08/2023,81,,Lorne Stewart  Plc
"Commercial, Corporate & landlord Services",Property Services & Facilities Management,Resources,Programmed Maintenance,Premises,"Repairs, Alterations & Maintenance of Buildings",Premises Repairs And Maintenance,,18/08/2023,22/08/2023,567,,Lorne Stewart  Plc
"Commercial, Corporate & landlord Services",Property Services & Facilities Management,Resources,Programmed Maintenance,Premises,"Repairs, Alterations & Maintenance of Buildings",Premises Repairs And Maintenance,,18/08/2023,22/08/2023,210.6,,Lorne Stewart  Plc
"Commercial, Corporate & landlord Services",Property Services & Facilities Management,Resources,Programmed Maintenance,Premises,"Repairs, Alterations & Maintenance of Buildings",Premises Repairs And Maintenance,,18/08/2023,22/08/2023,210.6,,Lorne Stewart  Plc
Children Services,Children Services Other,Social Care and Health,External Placements - CLA,Third Party Payments,Third Party,Fostering/Adoption Allowances,,31/07/2023,10/08/2023,6305.71,,Compass Fostering West Limited
Children Services,Children Services Other,Social Care and Health,External Placements - CLA,Third Party Payments,Third Party,Fostering/Adoption Allowances,,31/07/2023,10/08/2023,6305.71,,Compass Fostering West Limited
"Commercial, Corporate & landlord Services",Property Services & Facilities Management,Resources,Programmed Maintenance,Premises,"Repairs, Alterations & Maintenance of Buildings",Premises Repairs And Maintenance,,29/06/2023,04/08/2023,175,,Fire Safety Direct
"Commercial, Corporate & landlord Services",Property Services & Facilities Management,Resources,Programmed Maintenance,Premises,"Repairs, Alterations & Maintenance of Buildings",Premises Repairs And Maintenance,,21/06/2023,04/08/2023,175,,Fire Safety Direct
Adult Services,ADULT DISABILITY SERVICES,Social Care and Health,CLDT,Third Party Payments,Third Party,Personal Care.,,16/08/2023,16/08/2023,146.68,,REDACTED PERSONAL DATA
Children Services,Children Services Other,Social Care and Health,External Placements - CLA,Third Party Payments,Third Party,Fostering/Adoption Allowances,,31/07/2023,11/08/2023,4757.26,,TLC Wales Fostering
Children Services,Children Services Other,Social Care and Health,External Placements - CLA,Third Party Payments,Third Party,Fostering/Adoption Allowances,,31/07/2023,11/08/2023,3797.5,,National Fostering Agency
Children Services,Children Services Other,Social Care and Health,External Placements - CLA,Third Party Payments,Third Party,Fostering/Adoption Allowances,,31/07/2023,11/08/2023,3875,,National Fostering Agency
Children Services,Children Services Other,Social Care and Health,External Placements - CLA,Third Party Payments,Third Party,Fostering/Adoption Allowances,,31/07/2023,11/08/2023,4014.19,,National Fostering Agency
Children Services,Children Services Other,Social Care and Health,External Placements - CLA,Third Party Payments,Third Party,Fostering/Adoption Allowances,,31/07/2023,11/08/2023,3464.25,,National Fostering Agency
Children Services,Children Services Other,Social Care and Health,External Placements - CLA,Third Party Payments,Third Party,Fostering/Adoption Allowances,,31/07/2023,11/08/2023,3829.12,,National Fostering Agency
Children Services,Children Services Other,Social Care and Health,External Placements - CLA,Third Party Payments,Third Party,Fostering/Adoption Allowances,,31/07/2023,11/08/2023,3783.55,,Compass Fostering Wales Limited
Children Services,Children Services Other,Social Care and Health,External Placements - CLA,Third Party Payments,Third Party,Fostering/Adoption Allowances,,31/07/2023,11/08/2023,3783.55,,Compass Fostering Wales Limited
Children Services,Children Services Other,Social Care and Health,External Placements - CLA,Third Party Payments,Third Party,Fostering/Adoption Allowances,,31/07/2023,11/08/2023,3783.55,,Compass Fostering Wales Limited
Children Services,Children Services Other,Social Care and Health,External Placements - CLA,Third Party Payments,Third Party,Fostering/Adoption Allowances,,31/07/2023,11/08/2023,3956.53,,Compass Fostering Wales Limited
Children Services,Children Services Other,Social Care and Health,External Placements - CLA,Third Party Payments,Third Party,Fostering/Adoption Allowances,,31/07/2023,11/08/2023,3956.53,,Compass Fostering Wales Limited
Children Services,Children Services Other,Social Care and Health,External Placements - CLA,Third Party Payments,Third Party,Fostering/Adoption Allowances,,31/07/2023,11/08/2023,3783.55,,Compass Fostering Wales Limited
Children Services,Children Services Other,Social Care and Health,External Placements - CLA,Third Party Payments,Third Party,Fostering/Adoption Allowances,,31/07/2023,11/08/2023,3783.55,,Compass Fostering Wales Limited
Adult Services,ADULT DISABILITY SERVICES,Social Care and Health,CLDT,Third Party Payments,Third Party,Personal Care.,,16/08/2023,16/08/2023,826.84,,REDACTED PERSONAL DATA
Adult Services,Community Care Team,Social Care and Health,Monmouth Adult Team,Third Party Payments,Third Party,Personal Care.,,04/08/2023,04/08/2023,1499.29,,REDACTED PERSONAL DATA
"Commercial, Corporate & landlord Services",Property Services & Facilities Management,Resources,Programmed Maintenance,Premises,"Repairs, Alterations & Maintenance of Buildings",Premises Repairs And Maintenance,,18/08/2023,22/08/2023,54,,Lorne Stewart  Plc
Children Services,Children Services Other,Social Care and Health,External Placements - CLA,Third Party Payments,Third Party,Fostering/Adoption Allowances,,31/07/2023,11/08/2023,4154.93,,Compass Fostering London
Children Services,Children Services Other,Social Care and Health,External Placements - CLA,Third Party Payments,Third Party,Fostering/Adoption Allowances,,31/07/2023,11/08/2023,3985.67,,Compass Fostering West Limited
Children Services,Children Services Other,Social Care and Health,External Placements - CLA,Third Party Payments,Third Party,Fostering/Adoption Allowances,,31/07/2023,11/08/2023,4015.43,,Compass Fostering West Limited
Finance,Revenues Department,Resources,Council Tax & NNDR Administration,Supplies & Services,Services,Financial products and services general fees and charges,,31/07/2023,07/08/2023,879.1,,Marston Holdings Limited
Finance,Revenues Department,Resources,Council Tax & NNDR Administration,Supplies & Services,Services,Financial products and services general fees and charges,,31/07/2023,07/08/2023,-879.1,,Marston Holdings Limited
Finance,Revenues Department,Resources,Council Tax & NNDR Administration,Supplies & Services,Services,Financial products and services general fees and charges,,31/07/2023,07/08/2023,5.4,,Marston Holdings Limited
Finance,Revenues Department,Resources,Council Tax & NNDR Administration,Supplies & Services,Services,Financial products and services general fees and charges,,31/07/2023,07/08/2023,-5.4,,Marston Holdings Limited
"Commercial, Corporate & landlord Services",Property Services & Facilities Management,Resources,Programmed Maintenance,Premises,"Repairs, Alterations & Maintenance of Buildings",Premises Repairs And Maintenance,,18/08/2023,22/08/2023,588.06,,Lorne Stewart  Plc
"Commercial, Corporate & landlord Services",Property Services & Facilities Management,Resources,Programmed Maintenance,Premises,"Repairs, Alterations & Maintenance of Buildings",Premises Repairs And Maintenance,,18/08/2023,22/08/2023,588.06,,Lorne Stewart  Plc
"Commercial, Corporate & landlord Services",Property Services & Facilities Management,Resources,Programmed Maintenance,Premises,"Repairs, Alterations & Maintenance of Buildings",Premises Repairs And Maintenance,,18/08/2023,22/08/2023,588.06,,Lorne Stewart  Plc
"Commercial, Corporate & landlord Services",Property Services & Facilities Management,Resources,Programmed Maintenance,Premises,"Repairs, Alterations & Maintenance of Buildings",Premises Repairs And Maintenance,,18/08/2023,22/08/2023,588.06,,Lorne Stewart  Plc
"Commercial, Corporate & landlord Services",Property Services & Facilities Management,Resources,Programmed Maintenance,Premises,"Repairs, Alterations & Maintenance of Buildings",Premises Repairs And Maintenance,,18/08/2023,22/08/2023,588.06,,Lorne Stewart  Plc
"Commercial, Corporate & landlord Services",Property Services & Facilities Management,Resources,Programmed Maintenance,Premises,"Repairs, Alterations & Maintenance of Buildings",Premises Repairs And Maintenance,,18/08/2023,22/08/2023,588.06,,Lorne Stewart  Plc
"Commercial, Corporate & landlord Services",Property Services & Facilities Management,Resources,Programmed Maintenance,Premises,"Repairs, Alterations & Maintenance of Buildings",Premises Repairs And Maintenance,,18/08/2023,22/08/2023,588.06,,Lorne Stewart  Plc
"Commercial, Corporate & landlord Services",Property Services & Facilities Management,Resources,Programmed Maintenance,Premises,"Repairs, Alterations & Maintenance of Buildings",Premises Repairs And Maintenance,,18/08/2023,22/08/2023,588.06,,Lorne Stewart  Plc
"Commercial, Corporate & landlord Services",Property Services & Facilities Management,Resources,Programmed Maintenance,Premises,"Repairs, Alterations & Maintenance of Buildings",Premises Repairs And Maintenance,,18/08/2023,22/08/2023,588.06,,Lorne Stewart  Plc
"Commercial, Corporate & landlord Services",Property Services & Facilities Management,Resources,Programmed Maintenance,Premises,"Repairs, Alterations & Maintenance of Buildings",Premises Repairs And Maintenance,,18/08/2023,22/08/2023,588.06,,Lorne Stewart  Plc
"Commercial, Corporate & landlord Services",Property Services & Facilities Management,Resources,Programmed Maintenance,Premises,"Repairs, Alterations & Maintenance of Buildings",Premises Repairs And Maintenance,,18/08/2023,22/08/2023,588.06,,Lorne Stewart  Plc
"Commercial, Corporate & landlord Services",Property Services & Facilities Management,Resources,External Clients,Premises,"Repairs, Alterations & Maintenance of Buildings",Premises Repairs And Maintenance,,18/08/2023,22/08/2023,82.59,,Lorne Stewart  Plc
"Commercial, Corporate & landlord Services",Property Services & Facilities Management,Resources,Programmed Maintenance,Premises,"Repairs, Alterations & Maintenance of Buildings",Premises Repairs And Maintenance,,18/08/2023,22/08/2023,588.06,,Lorne Stewart  Plc
"Commercial, Corporate & landlord Services",Property Services & Facilities Management,Resources,Programmed Maintenance,Premises,"Repairs, Alterations & Maintenance of Buildings",Premises Repairs And Maintenance,,18/08/2023,22/08/2023,588.06,,Lorne Stewart  Plc
"Commercial, Corporate & landlord Services",Property Services & Facilities Management,Resources,Programmed Maintenance,Premises,"Repairs, Alterations & Maintenance of Buildings",Premises Repairs And Maintenance,,18/08/2023,22/08/2023,205.87,,Lorne Stewart  Plc
Schools Total,School Group 7 � Pupil Capacity 501-1800,MCC Schools,King Henry VIII Comprehensive,Supplies & Services,"Equipment, Furniture and Materials",Equipment Purchases,,26/07/2023,10/08/2023,105.54,,Hope Education Ltd
Schools Total,School Group 7 � Pupil Capacity 501-1800,MCC Schools,King Henry VIII Comprehensive,Supplies & Services,"Equipment, Furniture and Materials",Equipment Purchases,,26/07/2023,10/08/2023,105.54,,Hope Education Ltd
Schools Total,School Group 7 � Pupil Capacity 501-1800,MCC Schools,King Henry VIII Comprehensive,Supplies & Services,"Equipment, Furniture and Materials",Equipment Purchases,,26/07/2023,10/08/2023,105.54,,Hope Education Ltd
Schools Total,School Group 7 � Pupil Capacity 501-1800,MCC Schools,King Henry VIII Comprehensive,Supplies & Services,"Equipment, Furniture and Materials",Equipment Purchases,,26/07/2023,10/08/2023,175.9,,Hope Education Ltd
Schools Total,School Group 7 � Pupil Capacity 501-1800,MCC Schools,King Henry VIII Comprehensive,Supplies & Services,"Equipment, Furniture and Materials",Equipment Purchases,,26/07/2023,10/08/2023,175.9,,Hope Education Ltd
Schools Total,School Group 7 � Pupil Capacity 501-1800,MCC Schools,King Henry VIII Comprehensive,Supplies & Services,"Equipment, Furniture and Materials",Equipment Purchases,,26/07/2023,10/08/2023,49.02,,Hope Education Ltd
Schools Total,School Group 7 � Pupil Capacity 501-1800,MCC Schools,King Henry VIII Comprehensive,Supplies & Services,"Equipment, Furniture and Materials",Equipment Purchases,,26/07/2023,10/08/2023,28.95,,Hope Education Ltd
Schools Total,School Group 7 � Pupil Capacity 501-1800,MCC Schools,King Henry VIII Comprehensive,Supplies & Services,"Equipment, Furniture and Materials",Equipment Purchases,,26/07/2023,10/08/2023,7.2,,Hope Education Ltd
Schools Total,School Group 7 � Pupil Capacity 501-1800,MCC Schools,King Henry VIII Comprehensive,Supplies & Services,"Equipment, Furniture and Materials",Equipment Purchases,,26/07/2023,10/08/2023,6.53,,Hope Education Ltd
Schools Total,School Group 7 � Pupil Capacity 501-1800,MCC Schools,King Henry VIII Comprehensive,Supplies & Services,"Equipment, Furniture and Materials",Equipment Purchases,,26/07/2023,10/08/2023,3.3,,Hope Education Ltd
Adult Services,Community Care Team,Social Care and Health,Monmouth Adult Team,Third Party Payments,Third Party,Personal Care.,,04/08/2023,04/08/2023,1499.29,,REDACTED PERSONAL DATA
Adult Services,Community Care Team,Social Care and Health,Monmouth Adult Team,Third Party Payments,Third Party,Personal Care.,,04/08/2023,04/08/2023,1499.29,,REDACTED PERSONAL DATA
Adult Services,Community Care Team,Social Care and Health,Monmouth Adult Team,Third Party Payments,Third Party,Personal Care.,,04/08/2023,04/08/2023,1858.4,,REDACTED PERSONAL DATA
Adult Services,Community Care Team,Social Care and Health,Monmouth Adult Team,Third Party Payments,Third Party,Personal Care.,,05/08/2023,07/08/2023,20.27,,REDACTED PERSONAL DATA
Adult Services,Community Care Team,Social Care and Health,Monmouth Adult Team,Third Party Payments,Third Party,Personal Care.,,05/08/2023,07/08/2023,38.64,,REDACTED PERSONAL DATA
Adult Services,Community Care Team,Social Care and Health,Monmouth Adult Team,Third Party Payments,Third Party,Personal Care.,,05/08/2023,07/08/2023,64.1,,REDACTED PERSONAL DATA
"Commercial, Corporate & landlord Services",Property Services & Facilities Management,Resources,Programmed Maintenance,Premises,"Repairs, Alterations & Maintenance of Buildings",Premises Repairs And Maintenance,,18/08/2023,22/08/2023,588.06,,Lorne Stewart  Plc
"Commercial, Corporate & landlord Services",Property Services & Facilities Management,Resources,Programmed Maintenance,Premises,"Repairs, Alterations & Maintenance of Buildings",Premises Repairs And Maintenance,,31/07/2023,04/08/2023,300,,Industrial Door Services
"Commercial, Corporate & landlord Services",Property Services & Facilities Management,Resources,Programmed Maintenance,Premises,"Repairs, Alterations & Maintenance of Buildings",Premises Repairs And Maintenance,,31/07/2023,04/08/2023,75,,Industrial Door Services
Finance,Revenues Department,Resources,Council Tax & NNDR Administration,Supplies & Services,Services,Financial products and services general fees and charges,,03/07/2023,02/08/2023,11.6,,Marston Holdings Limited
"Facilities, Fleet & Decarbonisation",Transport Department,Communities & Place,Transport,Transport,Direct Transport Costs,All Other Non-Contract Transport Work.,,25/07/2023,03/08/2023,85,,Glenside Commercials Ltd
"Facilities, Fleet & Decarbonisation",Transport Department,Communities & Place,Transport,Transport,Direct Transport Costs,All Other Non-Contract Transport Work.,,25/07/2023,03/08/2023,312,,Euro Commercials (South Wales) L
"Commercial, Corporate & landlord Services",Property Services & Facilities Management,Resources,Programmed Maintenance,Premises,"Repairs, Alterations & Maintenance of Buildings",Premises Repairs And Maintenance,,13/07/2023,17/08/2023,5.52,,Fire Safety Direct
"Commercial, Corporate & landlord Services",Property Services & Facilities Management,Resources,Programmed Maintenance,Premises,"Repairs, Alterations & Maintenance of Buildings",Premises Repairs And Maintenance,,13/07/2023,17/08/2023,2.76,,Fire Safety Direct
"Commercial, Corporate & landlord Services",Property Services & Facilities Management,Resources,Programmed Maintenance,Premises,"Repairs, Alterations & Maintenance of Buildings",Premises Repairs And Maintenance,,13/07/2023,17/08/2023,2.76,,Fire Safety Direct
"Commercial, Corporate & landlord Services",Property Services & Facilities Management,Resources,Programmed Maintenance,Premises,"Repairs, Alterations & Maintenance of Buildings",Premises Repairs And Maintenance,,12/07/2023,17/08/2023,1.38,,Fire Safety Direct
"Commercial, Corporate & landlord Services",Property Services & Facilities Management,Resources,Programmed Maintenance,Premises,"Repairs, Alterations & Maintenance of Buildings",Premises Repairs And Maintenance,,12/07/2023,17/08/2023,4.14,,Fire Safety Direct
"Commercial, Corporate & landlord Services",Property Services & Facilities Management,Resources,Programmed Maintenance,Premises,"Repairs, Alterations & Maintenance of Buildings",Premises Repairs And Maintenance,,12/07/2023,17/08/2023,12.42,,Fire Safety Direct
"Commercial, Corporate & landlord Services",Property Services & Facilities Management,Resources,Programmed Maintenance,Premises,"Repairs, Alterations & Maintenance of Buildings",Premises Repairs And Maintenance,,10/07/2023,17/08/2023,2.76,,Fire Safety Direct
"Commercial, Corporate & landlord Services",Property Services & Facilities Management,Resources,Programmed Maintenance,Premises,"Repairs, Alterations & Maintenance of Buildings",Premises Repairs And Maintenance,,10/07/2023,17/08/2023,2.76,,Fire Safety Direct
"Commercial, Corporate & landlord Services",Property Services & Facilities Management,Resources,Programmed Maintenance,Premises,"Repairs, Alterations & Maintenance of Buildings",Premises Repairs And Maintenance,,19/07/2023,17/08/2023,2.76,,Fire Safety Direct
Children Services,Children Services Other,Social Care and Health,External Placements - CLA,Third Party Payments,Third Party,Fostering/Adoption Allowances,,31/07/2023,11/08/2023,4014.19,,National Fostering Agency
Children Services,Children Services Other,Social Care and Health,External Placements - CLA,Third Party Payments,Third Party,Fostering/Adoption Allowances,,31/07/2023,11/08/2023,3797.5,,National Fostering Agency
Children Services,Children Services Other,Social Care and Health,External Placements - CLA,Third Party Payments,Third Party,Fostering/Adoption Allowances,,31/05/2023,11/08/2023,251.76,,Foster Care Associates Limited (FCA)
Children Services,Children Services Other,Social Care and Health,External Placements - CLA,Third Party Payments,Third Party,Fostering/Adoption Allowances,,31/05/2023,11/08/2023,244.5,,Foster Care Associates Limited (FCA)
Children Services,Children Services Teams,Social Care and Health,Family Support and Protection Team - South,Employees,Direct Employee Expenses,Agency Staff,,18/07/2023,02/08/2023,1290,,NonStop Recruitment Ltd.
"Commercial, Corporate & landlord Services",Property Services & Facilities Management,Resources,Gwent Police Collaboration,Premises,"Repairs, Alterations & Maintenance of Buildings",Building Improvements / Maintenance,,13/06/2023,08/08/2023,36.75,,EFS Systems (UK) Ltd
"Commercial, Corporate & landlord Services",Property Services & Facilities Management,Resources,Gwent Police Collaboration,Premises,"Repairs, Alterations & Maintenance of Buildings",Building Improvements / Maintenance,,13/06/2023,08/08/2023,164,,EFS Systems (UK) Ltd
"Commercial, Corporate & landlord Services",Property Services & Facilities Management,Resources,Gwent Police Collaboration,Premises,"Repairs, Alterations & Maintenance of Buildings",Building Improvements / Maintenance,,31/07/2023,08/08/2023,125,,Industrial Door Services
"Commercial, Corporate & landlord Services",Property Services & Facilities Management,Resources,Gwent Police Collaboration,Premises,"Repairs, Alterations & Maintenance of Buildings",Building Improvements / Maintenance,,31/07/2023,08/08/2023,120,,Industrial Door Services
"Policy, Scrutiny & Customer Service",Policy And Partnerships,Chief Executive's Unit,Equalities and Welsh Language,Supplies & Services,"Equipment, Furniture and Materials",Advertising,,#N/A,#N/A,150,,Bendigidol Cyf (Trading as Lleol.cymru)
Adult Services,Community Care Team,Social Care and Health,Abergavenny Adult Team,Employees,Direct Employee Expenses,Agency Staff,,26/07/2023,07/08/2023,8.1,,Piers Meadows Recruitment Limited
Adult Services,Community Care Team,Social Care and Health,Abergavenny Adult Team,Employees,Direct Employee Expenses,Agency Staff,,26/07/2023,07/08/2023,-8.1,,Piers Meadows Recruitment Limited
"Commercial, Corporate & landlord Services",Property Services & Facilities Management,Resources,Gwent Police Collaboration,Premises,"Repairs, Alterations & Maintenance of Buildings",Building Improvements / Maintenance,,30/05/2023,22/08/2023,550,,Power Solutions
Adult Services,Direct Care Residential,Social Care and Health,Severn View Residential,Employees,Direct Employee Expenses,Agency Staff,,16/08/2023,01/09/2023,298.48,,Support Ethics Ltd
Adult Services,Direct Care Residential,Social Care and Health,Severn View Residential,Employees,Direct Employee Expenses,Agency Staff,,23/08/2023,01/09/2023,159.9,,Support Ethics Ltd
Adult Services,Direct Care Residential,Social Care and Health,Severn View Residential,Employees,Direct Employee Expenses,Agency Staff,,23/08/2023,01/09/2023,564.2,,Support Ethics Ltd
"Commercial, Corporate & landlord Services",Property Services & Facilities Management,Resources,Gwent Police Collaboration,Premises,"Repairs, Alterations & Maintenance of Buildings",Building Improvements / Maintenance,,26/07/2023,04/08/2023,46,,A J Quinn Building Contractors Ltd
"Commercial, Corporate & landlord Services",Property Services & Facilities Management,Resources,Gwent Police Collaboration,Premises,"Repairs, Alterations & Maintenance of Buildings",Building Improvements / Maintenance,,26/07/2023,04/08/2023,64,,A J Quinn Building Contractors Ltd
"Commercial, Corporate & landlord Services",Property Services & Facilities Management,Resources,Gwent Police Collaboration,Premises,"Repairs, Alterations & Maintenance of Buildings",Building Improvements / Maintenance,,26/07/2023,04/08/2023,96.88,,A J Quinn Building Contractors Ltd
"Commercial, Corporate & landlord Services",Property Services & Facilities Management,Resources,Gwent Police Collaboration,Premises,"Repairs, Alterations & Maintenance of Buildings",Building Improvements / Maintenance,,26/07/2023,04/08/2023,396.16,,A J Quinn Building Contractors Ltd
"Commercial, Corporate & landlord Services",Property Services & Facilities Management,Resources,Gwent Police Collaboration,Premises,"Repairs, Alterations & Maintenance of Buildings",Building Improvements / Maintenance,,26/07/2023,04/08/2023,96.12,,A J Quinn Building Contractors Ltd
"Commercial, Corporate & landlord Services",Property Services & Facilities Management,Resources,Gwent Police Collaboration,Premises,"Repairs, Alterations & Maintenance of Buildings",Building Improvements / Maintenance,,26/07/2023,04/08/2023,96.69,,A J Quinn Building Contractors Ltd
"Commercial, Corporate & landlord Services",Property Services & Facilities Management,Resources,Gwent Police Collaboration,Premises,"Repairs, Alterations & Maintenance of Buildings",Building Improvements / Maintenance,,26/07/2023,04/08/2023,96.89,,A J Quinn Building Contractors Ltd
"Commercial, Corporate & landlord Services",Property Services & Facilities Management,Resources,Gwent Police Collaboration,Premises,"Repairs, Alterations & Maintenance of Buildings",Building Improvements / Maintenance,,31/07/2023,04/08/2023,300,,Industrial Door Services
"Commercial, Corporate & landlord Services",Property Services & Facilities Management,Resources,Gwent Police Collaboration,Premises,"Repairs, Alterations & Maintenance of Buildings",Building Improvements / Maintenance,,25/05/2023,22/08/2023,140,,Ambassador Fire & Security LTD
Adult Services,Direct Care Residential,Social Care and Health,Severn View Residential,Employees,Direct Employee Expenses,Agency Staff,,23/08/2023,01/09/2023,131.6,,Support Ethics Ltd
Adult Services,Direct Care Residential,Social Care and Health,Severn View Residential,Employees,Direct Employee Expenses,Agency Staff,,23/08/2023,01/09/2023,586.95,,Support Ethics Ltd
Adult Services,Direct Care Residential,Social Care and Health,Severn View Residential,Employees,Direct Employee Expenses,Agency Staff,,23/08/2023,01/09/2023,452.56,,Support Ethics Ltd
Adult Services,Direct Care Residential,Social Care and Health,Severn View Residential,Employees,Direct Employee Expenses,Agency Staff,,23/08/2023,01/09/2023,165.23,,Support Ethics Ltd
Adult Services,Direct Care Residential,Social Care and Health,Severn View Residential,Employees,Direct Employee Expenses,Agency Staff,,23/08/2023,01/09/2023,460.8,,Support Ethics Ltd
Adult Services,Direct Care Residential,Social Care and Health,Severn View Residential,Employees,Direct Employee Expenses,Agency Staff,,23/08/2023,01/09/2023,170.56,,Support Ethics Ltd
Adult Services,Direct Care Residential,Social Care and Health,Severn View Residential,Employees,Direct Employee Expenses,Agency Staff,,23/08/2023,01/09/2023,341.02,,Support Ethics Ltd
"Placemaking, Highways & Flooding",Development Management & Building Control,Communities & Place,Building Control & Regulations,Supplies & Services,Grants and Subscriptions,Subscriptions,,03/03/2023,29/08/2023,400,,LABC Cymru
Finance & Business Devlopment,Borough Theatre,MonLife Directorate,Borough Theatre General,Supplies & Services,"Equipment, Furniture and Materials",Advertising,,02/06/2023,02/08/2023,5049,,Tindle Newspapers Wales & The Borders Ltd
"Commercial, Corporate & landlord Services",Property Services & Facilities Management,Resources,Gwent Police Collaboration,Premises,"Repairs, Alterations & Maintenance of Buildings",Building Improvements / Maintenance,,08/06/2023,08/08/2023,1449.23,,Industrial Door Services
Adult Services,Community Care Team,Social Care and Health,Monmouth Adult Team,Employees,Direct Employee Expenses,Agency Staff,,02/08/2023,07/08/2023,32879.72,,Radis Community Care
"Enterprise, Housing & Community Animation",General Fund Housing,Communities & Place,Homelessness,Supplies & Services,Services,Homelessness Bed & Breakfast Accomodation,,03/08/2023,17/08/2023,16200,,Great Western Abergavenny Ltd
Children Services,Children Services Teams,Social Care and Health,Family Support and Protection Team � North,Employees,Direct Employee Expenses,Agency Staff,,02/08/2023,07/08/2023,1739,,Liquid Personnel
Finance & Business Devlopment,Attractions,MonLife Directorate,Old Station Tintern,Supplies & Services,Catering,Cafe,,01/08/2023,08/08/2023,92.25,,The Pie House At Cinderhill Farm Limited
Finance & Business Devlopment,Attractions,MonLife Directorate,Old Station Tintern,Supplies & Services,Catering,Cafe,,31/07/2023,02/08/2023,55.81,,Castell Howell Foods Ltd
"Leisure, Youth & Outdoor Adventure",Leisure Services,MonLife Directorate,Abergavenny Leisure Centre,Supplies & Services,"Equipment, Furniture and Materials",Cleaning Materials.,,08/08/2023,22/08/2023,185.97,,Newhall Janitorial Ltd
"Leisure, Youth & Outdoor Adventure",Leisure Services,MonLife Directorate,Abergavenny Leisure Centre,Supplies & Services,"Equipment, Furniture and Materials",Cleaning Materials.,,27/07/2023,07/08/2023,52.9,,J P Lennard Ltd
Finance & Business Devlopment,Attractions,MonLife Directorate,Old Station Tintern,Supplies & Services,Catering,Cafe,,31/07/2023,02/08/2023,-55.81,,Castell Howell Foods Ltd
Finance & Business Devlopment,Attractions,MonLife Directorate,Old Station Tintern,Supplies & Services,Catering,Cafe,,31/07/2023,02/08/2023,351.54,,Castell Howell Foods Ltd
Finance & Business Devlopment,Attractions,MonLife Directorate,Old Station Tintern,Supplies & Services,Catering,Cafe,,25/07/2023,02/08/2023,75.9,,The Pie House At Cinderhill Farm Limited
Finance & Business Devlopment,Attractions,MonLife Directorate,Tourist Information Centres,Supplies & Services,Catering,Cafe,,25/07/2023,04/08/2023,111.9,,Brookes Wye Valley Dairy Co Ltd
Finance & Business Devlopment,Attractions,MonLife Directorate,Old Station Tintern,Supplies & Services,Catering,Cafe,,25/07/2023,04/08/2023,80.61,,Brookes Wye Valley Dairy Co Ltd
Schools Total,SCHGRP3 � School Group 3 � Pupil Capacity 315-500,MCC Schools,Overmonnow Primary School,Supplies & Services,"Equipment, Furniture and Materials",Cleaning Materials.,,25/07/2023,07/08/2023,2.24,,Handyman House (Lydney) Ltd
Adult Services,Community Care Team,Social Care and Health,Abergavenny Adult Team,Third Party Payments,Third Party,Personal Care.,,05/08/2023,07/08/2023,37.24,,REDACTED PERSONAL DATA
Adult Services,Community Care Team,Social Care and Health,Abergavenny Adult Team,Third Party Payments,Third Party,Personal Care.,,05/08/2023,07/08/2023,189.99,,REDACTED PERSONAL DATA
Adult Services,Community Care Team,Social Care and Health,Abergavenny Adult Team,Third Party Payments,Third Party,Personal Care.,,16/08/2023,16/08/2023,1304.36,,REDACTED PERSONAL DATA
"Facilities, Fleet & Decarbonisation",Property Services -  Cleaning,Communities & Place,Building Cleaning,Supplies & Services,"Equipment, Furniture and Materials",Cleaning Materials.,,16/08/2023,17/08/2023,101,,P&P Pest Control
Standards,Early Years,Children & Young People,Flying Start Grant,Supplies & Services,"Equipment, Furniture and Materials",Cleaning Materials.,,14/08/2023,17/08/2023,12.94,,Newhall Janitorial Ltd
Finance & Business Devlopment,Attractions,MonLife Directorate,Old Station Tintern,Supplies & Services,Catering,Cafe,,27/03/2023,02/08/2023,28,,The Welsh Coffee Company
Finance & Business Devlopment,Borough Theatre,MonLife Directorate,Borough Theatre General,Supplies & Services,"Equipment, Furniture and Materials",Promotions And Exhibitions,,02/08/2023,11/08/2023,4094.99,,Abergavenny Rotary CIO
"Leisure, Youth & Outdoor Adventure",Leisure Services,MonLife Directorate,Abergavenny Leisure Centre,Supplies & Services,"Equipment, Furniture and Materials",Cleaning Materials.,,31/07/2023,07/08/2023,662.47,,Newhall Janitorial Ltd
Neighbourhood Services,Highways,Communities & Place,Siding and Cleaning,Supplies & Services,"Equipment, Furniture and Materials",Display Equipment,,13/07/2023,22/08/2023,499.7,,Griffiths Signs & Equipment Co.
Adult Services,Direct Care Residential,Social Care and Health,Mardy Park,Supplies & Services,"Equipment, Furniture and Materials",Provisions.,,17/07/2023,07/08/2023,58.82,,Dole Foodservice (Hereford)
Finance & Business Devlopment,Attractions,MonLife Directorate,Old Station Tintern,Supplies & Services,Catering,Cafe,,27/03/2023,02/08/2023,-28,,The Welsh Coffee Company
Finance & Business Devlopment,Attractions,MonLife Directorate,Old Station Tintern,Supplies & Services,Catering,Cafe,,27/03/2023,02/08/2023,517.65,,The Welsh Coffee Company
Adult Services,Community Care Team,Social Care and Health,Abergavenny Adult Team,Third Party Payments,Third Party,Personal Care.,,16/08/2023,16/08/2023,986.28,,REDACTED PERSONAL DATA
Adult Services,Community Care Team,Social Care and Health,Monmouth Adult Team,Third Party Payments,Third Party,Personal Care.,,16/08/2023,16/08/2023,358.2,,REDACTED PERSONAL DATA
Adult Services,Community Care Team,Social Care and Health,Monmouth Adult Team,Third Party Payments,Third Party,Personal Care.,,16/08/2023,16/08/2023,1794.88,,REDACTED PERSONAL DATA
Adult Services,Community Care Team,Social Care and Health,Direct Payment Team,Supplies & Services,"Equipment, Furniture and Materials",Marketing Materials,,02/06/2023,07/08/2023,69.08,,customise r us
Finance & Business Devlopment,Attractions,MonLife Directorate,Old Station Tintern,Supplies & Services,Catering,Cafe,,03/08/2023,08/08/2023,426.26,,Castell Howell Foods Ltd
Finance & Business Devlopment,Attractions,MonLife Directorate,Old Station Tintern,Supplies & Services,Catering,Cafe,,03/08/2023,08/08/2023,-19.84,,Castell Howell Foods Ltd
Adult Services,Community Care Team,Social Care and Health,Chepstow Adult Team,Supplies & Services,Communications and Computing,Postages,,03/08/2023,08/08/2023,16.95,,Posturite (uk) Ltd
Adult Services,Direct Care Residential,Social Care and Health,Severn View Residential,Supplies & Services,"Equipment, Furniture and Materials",Provisions.,,18/07/2023,03/08/2023,-7.78,,Castell Howell Foods Ltd
Adult Services,Direct Care Residential,Social Care and Health,Severn View Residential,Supplies & Services,"Equipment, Furniture and Materials",Provisions.,,18/07/2023,03/08/2023,7.78,,Castell Howell Foods Ltd
Adult Services,Direct Care Residential,Social Care and Health,Severn View Residential,Supplies & Services,"Equipment, Furniture and Materials",Provisions.,,18/07/2023,03/08/2023,527.22,,Castell Howell Foods Ltd
Adult Services,Direct Care Residential,Social Care and Health,Severn View Residential,Supplies & Services,"Equipment, Furniture and Materials",Provisions.,,25/07/2023,03/08/2023,597.26,,Castell Howell Foods Ltd
"Leisure, Youth & Outdoor Adventure",Leisure Services,MonLife Directorate,Caldicot Leisure Centre,Supplies & Services,"Equipment, Furniture and Materials",Cleaning Materials.,,01/08/2023,17/08/2023,41.61,,Newhall Janitorial Ltd
"Leisure, Youth & Outdoor Adventure",Leisure Services,MonLife Directorate,Caldicot Leisure Centre,Supplies & Services,"Equipment, Furniture and Materials",Cleaning Materials.,,10/08/2023,17/08/2023,162.55,,Newhall Janitorial Ltd
"Commercial, Corporate & landlord Services",Property Services & Facilities Management,Resources,Magor Accommodation,Premises,"Repairs, Alterations & Maintenance of Buildings",Premises Repairs And Maintenance,,28/02/2023,08/08/2023,120,,Industrial Door Services
"Commercial, Corporate & landlord Services",Property Services & Facilities Management,Resources,Programmed Maintenance,Premises,"Repairs, Alterations & Maintenance of Buildings",Premises Repairs And Maintenance,,14/08/2023,17/08/2023,75,,Industrial Door Services
Adult Services,Community Care Team,Social Care and Health,Chepstow Adult Team,Third Party Payments,Third Party,Personal Care.,,27/07/2023,11/08/2023,3060,,Kind Tailored Care Ltd
Adult Services,Community Care Team,Social Care and Health,Monmouth Adult Team,Third Party Payments,Third Party,Personal Care.,,16/08/2023,16/08/2023,696.76,,REDACTED PERSONAL DATA
Schools Total,School Group 7 � Pupil Capacity 501-1800,MCC Schools,King Henry VIII Comprehensive,Supplies & Services,"Equipment, Furniture and Materials",Equipment Purchases,,26/07/2023,11/08/2023,25.8,,Yorkshire Purchasing
Schools Total,School Group 7 � Pupil Capacity 501-1800,MCC Schools,King Henry VIII Comprehensive,Supplies & Services,"Equipment, Furniture and Materials",Equipment Purchases,,11/08/2023,17/08/2023,2000,,Hegarty Maths
"Commercial, Corporate & landlord Services",Property Services & Facilities Management,Resources,Programmed Maintenance,Premises,"Repairs, Alterations & Maintenance of Buildings",Premises Repairs And Maintenance,,24/07/2023,17/08/2023,6.9,,Fire Safety Direct
"Commercial, Corporate & landlord Services",Property Services & Facilities Management,Resources,Usk Accommodation,Premises,"Repairs, Alterations & Maintenance of Buildings",Premises Repairs And Maintenance,,17/07/2023,17/08/2023,17.94,,Fire Safety Direct
Children Services,Children Services Other,Social Care and Health,External Placements - CLA,Third Party Payments,Third Party,Fostering/Adoption Allowances,,30/06/2023,09/10/2023,-264.9,,Compass Fostering Wales Limited
Children Services,Children Services Other,Social Care and Health,External Placements - CLA,Third Party Payments,Third Party,Fostering/Adoption Allowances,,30/06/2023,09/10/2023,-264.9,,Compass Fostering Wales Limited
Children Services,Children Services Other,Social Care and Health,External Placements - CLA,Third Party Payments,Third Party,Fostering/Adoption Allowances,,30/06/2023,09/10/2023,-264.9,,Compass Fostering Wales Limited
Children Services,Children Services Other,Social Care and Health,External Placements - CLA,Third Party Payments,Third Party,Fostering/Adoption Allowances,,30/06/2023,09/10/2023,-264.9,,Compass Fostering Wales Limited
Children Services,Children Services Other,Social Care and Health,External Placements - CLA,Third Party Payments,Third Party,Fostering/Adoption Allowances,,30/06/2023,09/10/2023,-276.9,,Compass Fostering Wales Limited
Children Services,Children Services Other,Social Care and Health,External Placements - CLA,Third Party Payments,Third Party,Fostering/Adoption Allowances,,30/06/2023,09/10/2023,-276.9,,Compass Fostering Wales Limited
Schools Total,School Group 7 � Pupil Capacity 501-1800,MCC Schools,King Henry VIII Comprehensive,Supplies & Services,"Equipment, Furniture and Materials",Equipment Purchases,,26/07/2023,10/08/2023,36.24,,Hope Education Ltd
Schools Total,School Group 7 � Pupil Capacity 501-1800,MCC Schools,King Henry VIII Comprehensive,Supplies & Services,"Equipment, Furniture and Materials",Equipment Purchases,,26/07/2023,10/08/2023,3.99,,Hope Education Ltd
"Commercial, Corporate & landlord Services",Property Services & Facilities Management,Resources,Programmed Maintenance,Premises,"Repairs, Alterations & Maintenance of Buildings",Premises Repairs And Maintenance,,24/03/2023,08/08/2023,210,,Industrial Door Services
Schools Total,School Group 7 � Pupil Capacity 501-1800,MCC Schools,King Henry VIII Comprehensive,Supplies & Services,"Equipment, Furniture and Materials",Equipment Purchases,,26/07/2023,10/08/2023,0.7,,Hope Education Ltd
Schools Total,School Group 7 � Pupil Capacity 501-1800,MCC Schools,King Henry VIII Comprehensive,Supplies & Services,"Equipment, Furniture and Materials",Equipment Purchases,,26/07/2023,10/08/2023,0.61,,Hope Education Ltd
Schools Total,School Group 7 � Pupil Capacity 501-1800,MCC Schools,King Henry VIII Comprehensive,Supplies & Services,"Equipment, Furniture and Materials",Equipment Purchases,,26/07/2023,10/08/2023,2.7,,Hope Education Ltd
Schools Total,School Group 7 � Pupil Capacity 501-1800,MCC Schools,King Henry VIII Comprehensive,Supplies & Services,"Equipment, Furniture and Materials",Equipment Purchases,,26/07/2023,10/08/2023,5.09,,Hope Education Ltd
Schools Total,School Group 7 � Pupil Capacity 501-1800,MCC Schools,King Henry VIII Comprehensive,Supplies & Services,"Equipment, Furniture and Materials",Equipment Purchases,,26/07/2023,10/08/2023,10.6,,Hope Education Ltd
Schools Total,School Group 7 � Pupil Capacity 501-1800,MCC Schools,King Henry VIII Comprehensive,Supplies & Services,"Equipment, Furniture and Materials",Equipment Purchases,,26/07/2023,10/08/2023,1.87,,Hope Education Ltd
Schools Total,School Group 7 � Pupil Capacity 501-1800,MCC Schools,King Henry VIII Comprehensive,Supplies & Services,"Equipment, Furniture and Materials",Equipment Purchases,,26/07/2023,10/08/2023,1.87,,Hope Education Ltd
Schools Total,School Group 7 � Pupil Capacity 501-1800,MCC Schools,King Henry VIII Comprehensive,Supplies & Services,"Equipment, Furniture and Materials",Equipment Purchases,,26/07/2023,10/08/2023,19.49,,Hope Education Ltd
Schools Total,School Group 7 � Pupil Capacity 501-1800,MCC Schools,King Henry VIII Comprehensive,Supplies & Services,"Equipment, Furniture and Materials",Equipment Purchases,,26/07/2023,10/08/2023,3.61,,Hope Education Ltd
Schools Total,School Group 7 � Pupil Capacity 501-1800,MCC Schools,King Henry VIII Comprehensive,Supplies & Services,"Equipment, Furniture and Materials",Equipment Purchases,,26/07/2023,10/08/2023,4.55,,Hope Education Ltd
Schools Total,School Group 7 � Pupil Capacity 501-1800,MCC Schools,King Henry VIII Comprehensive,Supplies & Services,"Equipment, Furniture and Materials",Equipment Purchases,,26/07/2023,10/08/2023,15.27,,Hope Education Ltd
"Commercial, Corporate & landlord Services",Property Services & Facilities Management,Resources,Programmed Maintenance,Premises,"Repairs, Alterations & Maintenance of Buildings",Premises Repairs And Maintenance,,12/07/2023,16/08/2023,175,,Fire Safety Direct
Adult Services,Community Care Team,Social Care and Health,Monmouth Adult Team,Third Party Payments,Third Party,Personal Care.,,16/08/2023,16/08/2023,2820,,REDACTED PERSONAL DATA
Schools Total,School Group 7 � Pupil Capacity 501-1800,MCC Schools,King Henry VIII Comprehensive,Supplies & Services,"Equipment, Furniture and Materials",Equipment Purchases,,26/07/2023,10/08/2023,73.53,,Hope Education Ltd
Schools Total,School Group 7 � Pupil Capacity 501-1800,MCC Schools,King Henry VIII Comprehensive,Supplies & Services,"Equipment, Furniture and Materials",Equipment Purchases,,26/07/2023,10/08/2023,73.5,,Hope Education Ltd
Schools Total,School Group 7 � Pupil Capacity 501-1800,MCC Schools,King Henry VIII Comprehensive,Supplies & Services,"Equipment, Furniture and Materials",Equipment Purchases,,26/07/2023,10/08/2023,73.53,,Hope Education Ltd
Children Services,Children Services Teams,Social Care and Health,Family Support and Protection Team � North,Employees,Direct Employee Expenses,Agency Staff,,02/08/2023,07/08/2023,1787.51,,Liquid Personnel
Children Services,Children Services Teams,Social Care and Health,Long Term Support Team,Employees,Direct Employee Expenses,Agency Staff,,02/08/2023,07/08/2023,1646,,Liquid Personnel
"Commercial, Corporate & landlord Services",Property Services & Facilities Management,Resources,Gwent Police Collaboration,Premises,"Repairs, Alterations & Maintenance of Buildings",Building Improvements / Maintenance,,26/07/2023,07/08/2023,106.26,,A J Quinn Building Contractors Ltd
"Commercial, Corporate & landlord Services",Property Services & Facilities Management,Resources,Gwent Police Collaboration,Premises,"Repairs, Alterations & Maintenance of Buildings",Building Improvements / Maintenance,,08/06/2023,08/08/2023,195,,Industrial Door Services
"Commercial, Corporate & landlord Services",Property Services & Facilities Management,Resources,Gwent Police Collaboration,Premises,"Repairs, Alterations & Maintenance of Buildings",Building Improvements / Maintenance,,04/08/2023,08/08/2023,100,,Ambassador Fire & Security LTD
"Commercial, Corporate & landlord Services",Property Services & Facilities Management,Resources,Gwent Police Collaboration,Premises,"Repairs, Alterations & Maintenance of Buildings",Building Improvements / Maintenance,,15/08/2023,18/08/2023,125,,Industrial Door Services
Children Services,Children Services Teams,Social Care and Health,Long Term Support Team,Employees,Direct Employee Expenses,Agency Staff,,12/07/2023,17/08/2023,3713,,HIT EDUCATION
Individual School Budget,Individual Schools Budget,Children & Young People,Usk CRC,Premises,"Repairs, Alterations & Maintenance of Buildings",Premises Repairs And Maintenance,,15/06/2023,17/08/2023,90,,Sportsafe UK Ltd
"Commercial, Corporate & landlord Services",Property Services & Facilities Management,Resources,Gwent Police Collaboration,Premises,"Repairs, Alterations & Maintenance of Buildings",Building Improvements / Maintenance,,04/08/2023,08/08/2023,50,,Ambassador Fire & Security LTD
Adult Services,INTEGRATED CARE FUND,Social Care and Health,Intermediate Care Fund,Employees,Direct Employee Expenses,Agency Staff,,09/08/2023,18/08/2023,808.88,,Piers Meadows Recruitment Limited
Adult Services,INTEGRATED CARE FUND,Social Care and Health,Intermediate Care Fund,Employees,Direct Employee Expenses,Agency Staff,,09/08/2023,18/08/2023,7.65,,Piers Meadows Recruitment Limited
Adult Services,INTEGRATED CARE FUND,Social Care and Health,Intermediate Care Fund,Employees,Direct Employee Expenses,Agency Staff,,09/08/2023,18/08/2023,-7.65,,Piers Meadows Recruitment Limited
"Commercial, Corporate & landlord Services",Property Services & Facilities Management,Resources,Gwent Police Collaboration,Premises,"Repairs, Alterations & Maintenance of Buildings",Building Improvements / Maintenance,,15/08/2023,18/08/2023,65,,Industrial Door Services
"Commercial, Corporate & landlord Services",Property Services & Facilities Management,Resources,Gwent Police Collaboration,Premises,"Repairs, Alterations & Maintenance of Buildings",Building Improvements / Maintenance,,15/08/2023,18/08/2023,1486.39,,Industrial Door Services
"Commercial, Corporate & landlord Services",Property Services & Facilities Management,Resources,Gwent Police Collaboration,Premises,"Repairs, Alterations & Maintenance of Buildings",Building Improvements / Maintenance,,15/08/2023,18/08/2023,75,,Industrial Door Services
"Commercial, Corporate & landlord Services",Property Services & Facilities Management,Resources,Gwent Police Collaboration,Premises,"Repairs, Alterations & Maintenance of Buildings",Building Improvements / Maintenance,,15/08/2023,18/08/2023,255,,Industrial Door Services
Adult Services,Direct Care Residential,Social Care and Health,Severn View Residential,Employees,Direct Employee Expenses,Agency Staff,,17/05/2023,22/08/2023,1719.87,,Support Ethics Ltd
"Commercial, Corporate & landlord Services",Property Services & Facilities Management,Resources,Gwent Police Collaboration,Premises,"Repairs, Alterations & Maintenance of Buildings",Building Improvements / Maintenance,,04/08/2023,08/08/2023,50,,Ambassador Fire & Security LTD
"Commercial, Corporate & landlord Services",Property Services & Facilities Management,Resources,Gwent Police Collaboration,Premises,"Repairs, Alterations & Maintenance of Buildings",Building Improvements / Maintenance,,04/08/2023,08/08/2023,50,,Ambassador Fire & Security LTD
"Commercial, Corporate & landlord Services",Property Services & Facilities Management,Resources,Gwent Police Collaboration,Premises,"Repairs, Alterations & Maintenance of Buildings",Building Improvements / Maintenance,,04/08/2023,08/08/2023,50,,Ambassador Fire & Security LTD
"Commercial, Corporate & landlord Services",Property Services & Facilities Management,Resources,Gwent Police Collaboration,Premises,"Repairs, Alterations & Maintenance of Buildings",Building Improvements / Maintenance,,04/08/2023,08/08/2023,112.5,,Ambassador Fire & Security LTD
"Commercial, Corporate & landlord Services",Property Services & Facilities Management,Resources,Gwent Police Collaboration,Premises,"Repairs, Alterations & Maintenance of Buildings",Building Improvements / Maintenance,,04/08/2023,08/08/2023,50,,Ambassador Fire & Security LTD
"Commercial, Corporate & landlord Services",Property Services & Facilities Management,Resources,Gwent Police Collaboration,Premises,"Repairs, Alterations & Maintenance of Buildings",Building Improvements / Maintenance,,04/08/2023,08/08/2023,50,,Ambassador Fire & Security LTD
"Commercial, Corporate & landlord Services",Property Services & Facilities Management,Resources,Gwent Police Collaboration,Premises,"Repairs, Alterations & Maintenance of Buildings",Building Improvements / Maintenance,,04/08/2023,08/08/2023,453,,Ambassador Fire & Security LTD
"Commercial, Corporate & landlord Services",Property Services & Facilities Management,Resources,Gwent Police Collaboration,Premises,"Repairs, Alterations & Maintenance of Buildings",Building Improvements / Maintenance,,08/08/2023,01/09/2023,34534.76,,EFS Systems (UK) Ltd
"Commercial, Corporate & landlord Services",Property Services & Facilities Management,Resources,Gwent Police Collaboration,Premises,"Repairs, Alterations & Maintenance of Buildings",Building Improvements / Maintenance,,10/08/2023,01/09/2023,57.5,,A J Quinn Building Contractors Ltd
"Commercial, Corporate & landlord Services",Property Services & Facilities Management,Resources,Gwent Police Collaboration,Premises,"Repairs, Alterations & Maintenance of Buildings",Building Improvements / Maintenance,,09/08/2023,01/09/2023,145.43,,A J Quinn Building Contractors Ltd
"Commercial, Corporate & landlord Services",Property Services & Facilities Management,Resources,Gwent Police Collaboration,Premises,"Repairs, Alterations & Maintenance of Buildings",Building Improvements / Maintenance,,09/08/2023,01/09/2023,56.77,,A J Quinn Building Contractors Ltd
Adult Services,Direct Care Residential,Social Care and Health,Severn View Residential,Employees,Direct Employee Expenses,Agency Staff,,09/08/2023,22/08/2023,-131.6,,Support Ethics Ltd
Children Services,Children Services Teams,Social Care and Health,Long Term Support Team,Employees,Direct Employee Expenses,Agency Staff,,13/07/2023,03/08/2023,1651.4,,Liquid Personnel
Adult Services,INTEGRATED CARE FUND,Social Care and Health,Intermediate Care Fund,Employees,Direct Employee Expenses,Agency Staff,,26/07/2023,03/08/2023,1552.41,,Liquid Personnel
"Facilities, Fleet & Decarbonisation",Transport Department,Communities & Place,Transport,Transport,Direct Transport Costs,Oil,,21/07/2023,03/08/2023,216.75,,Fast Fluid Power Ltd
Children Services,Children Services Teams,Social Care and Health,Long Term Support Team,Employees,Direct Employee Expenses,Agency Staff,,19/07/2023,03/08/2023,1643.6,,Liquid Personnel
Adult Services,Community Care Team,Social Care and Health,Monmouth Adult Team,Third Party Payments,Third Party,Personal Care.,,16/08/2023,16/08/2023,504,,REDACTED PERSONAL DATA
Adult Services,Community Care Team,Social Care and Health,Monmouth Adult Team,Third Party Payments,Third Party,Personal Care.,,16/08/2023,16/08/2023,1718.76,,REDACTED PERSONAL DATA
Adult Services,Community Care Team,Social Care and Health,Monmouth Adult Team,Third Party Payments,Third Party,Personal Care.,,16/08/2023,16/08/2023,1259.04,,REDACTED PERSONAL DATA
Adult Services,Community Care Team,Social Care and Health,Monmouth Adult Team,Third Party Payments,Third Party,Personal Care.,,16/08/2023,16/08/2023,9118,,REDACTED PERSONAL DATA
Adult Services,Community Care Team,Social Care and Health,Monmouth Adult Team,Third Party Payments,Third Party,Personal Care.,,16/08/2023,16/08/2023,1778.6,,REDACTED PERSONAL DATA
"Facilities, Fleet & Decarbonisation",Transport Department,Communities & Place,Transport,Transport,Contract Hire and Operating Leases,Vehicle Hire Charge,,31/07/2023,22/08/2023,686.34,,Runtech Ltd
"Facilities, Fleet & Decarbonisation",Transport Department,Communities & Place,Transport,Transport,Contract Hire and Operating Leases,Vehicle Hire Charge,,31/07/2023,22/08/2023,752.99,,Runtech Ltd
Adult Services,Community Care Team,Social Care and Health,Chepstow Adult Team,Third Party Payments,Third Party,Personal Care.,,04/08/2023,04/08/2023,2000.88,,REDACTED PERSONAL DATA
Adult Services,Community Care Team,Social Care and Health,Chepstow Adult Team,Third Party Payments,Third Party,Personal Care.,,05/08/2023,07/08/2023,19.42,,REDACTED PERSONAL DATA
Schools Total,School Group 2 � Pupil Capacity 144-314,MCC Schools,Archbishop Rowan Williams CiW Primary School (VA),Transport,Contract Hire and Operating Leases,Vehicle Hire Charge,,10/07/2023,07/08/2023,790,,Newport Transport Ltd
Children Services,Children Services Other,Social Care and Health,External Placements - CLA,Third Party Payments,Third Party,Residential.,,31/07/2023,11/08/2023,17081,,Stepping Stones Care Services (South Wales) Ltd.
Adult Services,Community Care Team,Social Care and Health,Mental Health Care Team,Third Party Payments,Third Party,Personal Care.,,03/07/2023,07/08/2023,7644.16,,Pobl Care & Support
Adult Services,Community Care Team,Social Care and Health,Mental Health Care Team,Third Party Payments,Third Party,Personal Care.,,03/07/2023,07/08/2023,7644.16,,Pobl Care & Support
Children Services,Children Services Teams,Social Care and Health,Youth Offending Team,Supplies & Services,Communications and Computing,Telephone - Call Charges,,31/07/2023,11/08/2023,38,,3Cubed
Adult Services,Community Care Team,Social Care and Health,Chepstow Adult Team,Third Party Payments,Third Party,Personal Care.,,05/08/2023,07/08/2023,31.73,,REDACTED PERSONAL DATA
Adult Services,Community Care Team,Social Care and Health,Chepstow Adult Team,Third Party Payments,Third Party,Personal Care.,,05/08/2023,07/08/2023,8.26,,REDACTED PERSONAL DATA
Adult Services,ADULT DISABILITY SERVICES,Social Care and Health,CLDT,Third Party Payments,Third Party,Personal Care.,,25/07/2023,10/08/2023,3578.68,,The Orchard Trust
Adult Services,ADULT DISABILITY SERVICES,Social Care and Health,CLDT,Third Party Payments,Third Party,Personal Care.,,24/07/2023,10/08/2023,600,,Wellies Farm & Garden CIC
Adult Services,ADULT DISABILITY SERVICES,Social Care and Health,CLDT,Third Party Payments,Third Party,Personal Care.,,24/07/2023,10/08/2023,8392.24,,Cariad Domiciliary Support Services Ltd
Adult Services,ADULT DISABILITY SERVICES,Social Care and Health,CLDT,Third Party Payments,Third Party,Personal Care.,,24/07/2023,10/08/2023,9802.8,,Cariad Domiciliary Support Services Ltd
Adult Services,ADULT DISABILITY SERVICES,Social Care and Health,CLDT,Third Party Payments,Third Party,Personal Care.,,24/07/2023,10/08/2023,1285.39,,Cariad Domiciliary Support Services Ltd
Adult Services,ADULT DISABILITY SERVICES,Social Care and Health,CLDT,Third Party Payments,Third Party,Personal Care.,,24/07/2023,10/08/2023,4498.89,,Cariad Domiciliary Support Services Ltd
Adult Services,ADULT DISABILITY SERVICES,Social Care and Health,CLDT,Third Party Payments,Third Party,Personal Care.,,21/07/2023,10/08/2023,3330.26,,The Home Farm Trust
Capital Division,Capital Dept,Capital,Capital Programme,Third Party Payments,Third Party,General Contracts,,08/06/2023,04/08/2023,1100,,Up And Under Ltd
Capital Division,Capital Dept,Capital,Capital Programme,Third Party Payments,Third Party,General Contracts,,20/07/2023,04/08/2023,822,,Wildwood Ecology Limited
Finance & Business Devlopment,Attractions,MonLife Directorate,Shirehall,Supplies & Services,Communications and Computing,Telephone,,21/07/2023,04/08/2023,426,,Contact Radio Communications Ltd
Adult Services,Community Care Team,Social Care and Health,Abergavenny Adult Team,Third Party Payments,Third Party,Residential.,,27/07/2023,04/08/2023,3584,,Gibraltar Care Village Limited t/a PSP Healthcare Limited
Adult Services,Community Care Team,Social Care and Health,Abergavenny Adult Team,Third Party Payments,Third Party,Residential.,,27/07/2023,04/08/2023,3220,,Gibraltar Care Village Limited t/a PSP Healthcare Limited
Children Services,Children Services Other,Social Care and Health,External Placements - CLA,Third Party Payments,Third Party,Residential.,,31/07/2023,11/08/2023,23427.14,,SICS Gofal Cymru CYF
Children Services,Children Services Other,Social Care and Health,External Placements - CLA,Third Party Payments,Third Party,Residential.,,08/08/2023,11/08/2023,5554.28,,National Family Support Service
Schools Total,School Group 7 � Pupil Capacity 501-1800,MCC Schools,King Henry VIII Comprehensive,Employees,Direct Employee Expenses,Agency Staff,,23/07/2023,02/08/2023,206,,New Directions Education Ltd
Schools Total,School Group 7 � Pupil Capacity 501-1800,MCC Schools,King Henry VIII Comprehensive,Employees,Direct Employee Expenses,Agency Staff,,23/07/2023,02/08/2023,206,,New Directions Education Ltd
Schools Total,School Group 7 � Pupil Capacity 501-1800,MCC Schools,King Henry VIII Comprehensive,Employees,Direct Employee Expenses,Agency Staff,,23/07/2023,02/08/2023,206,,New Directions Education Ltd
Schools Total,School Group 7 � Pupil Capacity 501-1800,MCC Schools,King Henry VIII Comprehensive,Employees,Direct Employee Expenses,Agency Staff,,23/07/2023,02/08/2023,141.59,,New Directions Education Ltd
Schools Total,School Group 7 � Pupil Capacity 501-1800,MCC Schools,King Henry VIII Comprehensive,Employees,Direct Employee Expenses,Agency Staff,,23/07/2023,02/08/2023,141.59,,New Directions Education Ltd
Schools Total,School Group 7 � Pupil Capacity 501-1800,MCC Schools,King Henry VIII Comprehensive,Employees,Direct Employee Expenses,Agency Staff,,23/07/2023,02/08/2023,141.59,,New Directions Education Ltd
Schools Total,School Group 7 � Pupil Capacity 501-1800,MCC Schools,King Henry VIII Comprehensive,Employees,Direct Employee Expenses,Agency Staff,,23/07/2023,02/08/2023,141.59,,New Directions Education Ltd
Schools Total,School Group 7 � Pupil Capacity 501-1800,MCC Schools,King Henry VIII Comprehensive,Employees,Direct Employee Expenses,Agency Staff,,23/07/2023,02/08/2023,141.59,,New Directions Education Ltd
Schools Total,School Group 7 � Pupil Capacity 501-1800,MCC Schools,King Henry VIII Comprehensive,Employees,Direct Employee Expenses,Agency Staff,,23/07/2023,02/08/2023,207.56,,New Directions Education Ltd
Schools Total,Schools,MCC Schools,Pupil Referral Unit,Employees,Direct Employee Expenses,Agency Staff,,12/07/2023,22/08/2023,1449.49,,Back Office Support Services Ltd (Education Supply Pool)
Standards,Additional Learning Needs,Children & Young People,Additional Learning Needs Administration Service,Supplies & Services,Services,Sub-Contractors Fees,,05/07/2023,07/08/2023,398.1,,Teaching Personnel
"Policy, Scrutiny & Customer Service",Ukraine,Chief Executive's Unit,Ukraine Support,Supplies & Services,Services,Professional And Specialist Fees,,12/07/2023,07/08/2023,761.99,,Cardiff City Council
Children Services,Children Services Teams,Social Care and Health,Early Help and Assessment Team,Supplies & Services,Services,Professional And Specialist Fees,,12/07/2023,07/08/2023,279.17,,Cardiff City Council
Children Services,Children Services Teams,Social Care and Health,Family Support and Protection Team - South,Supplies & Services,Services,Professional And Specialist Fees,,12/07/2023,07/08/2023,444.01,,Cardiff City Council
Children Services,Children Services Other,Social Care and Health,External Placements - CLA,Supplies & Services,Services,Private Nursery Fees,,01/08/2023,11/08/2023,749.45,,Happy Days Nursery
Schools Total,School Group 2 � Pupil Capacity 144-314,MCC Schools,Kymin View Primary School,Employees,Direct Employee Expenses,Agency Staff,,23/07/2023,02/08/2023,207.56,,New Directions Education Ltd
Schools Total,School Group 2 � Pupil Capacity 144-314,MCC Schools,Llanfoist Fawr Primary School,Employees,Direct Employee Expenses,Agency Staff,,23/07/2023,02/08/2023,207.56,,New Directions Education Ltd
Schools Total,School Group 2 � Pupil Capacity 144-314,MCC Schools,Llanfoist Fawr Primary School,Employees,Direct Employee Expenses,Agency Staff,,23/07/2023,02/08/2023,207.56,,New Directions Education Ltd
Schools Total,School Group 2 � Pupil Capacity 144-314,MCC Schools,Llanfoist Fawr Primary School,Employees,Direct Employee Expenses,Agency Staff,,23/07/2023,02/08/2023,121.38,,New Directions Education Ltd
Schools Total,School Group 2 � Pupil Capacity 144-314,MCC Schools,Llanfoist Fawr Primary School,Employees,Direct Employee Expenses,Agency Staff,,23/07/2023,02/08/2023,121.38,,New Directions Education Ltd
Schools Total,School Group 2 � Pupil Capacity 144-314,MCC Schools,Llanfoist Fawr Primary School,Employees,Direct Employee Expenses,Agency Staff,,23/07/2023,02/08/2023,121.38,,New Directions Education Ltd
Schools Total,School Group 7 � Pupil Capacity 501-1800,MCC Schools,King Henry VIII Comprehensive,Employees,Direct Employee Expenses,Agency Staff,,23/07/2023,02/08/2023,118.01,,New Directions Education Ltd
Schools Total,School Group 7 � Pupil Capacity 501-1800,MCC Schools,King Henry VIII Comprehensive,Employees,Direct Employee Expenses,Agency Staff,,23/07/2023,02/08/2023,118.01,,New Directions Education Ltd
Schools Total,School Group 7 � Pupil Capacity 501-1800,MCC Schools,King Henry VIII Comprehensive,Employees,Direct Employee Expenses,Agency Staff,,23/07/2023,02/08/2023,118.01,,New Directions Education Ltd
Schools Total,School Group 7 � Pupil Capacity 501-1800,MCC Schools,King Henry VIII Comprehensive,Employees,Direct Employee Expenses,Agency Staff,,23/07/2023,02/08/2023,141.59,,New Directions Education Ltd
"Commercial, Corporate & landlord Services",Property Services & Facilities Management,Resources,External Clients,Premises,"Repairs, Alterations & Maintenance of Buildings",Building Improvements / Maintenance,,18/08/2023,22/08/2023,695.97,,Lorne Stewart  Plc
"Commercial, Corporate & landlord Services",Property Services & Facilities Management,Resources,External Clients,Premises,"Repairs, Alterations & Maintenance of Buildings",Building Improvements / Maintenance,,18/08/2023,22/08/2023,209.22,,Lorne Stewart  Plc
"Commercial, Corporate & landlord Services",Property Services & Facilities Management,Resources,Magor Accommodation,Premises,"Repairs, Alterations & Maintenance of Buildings",Building Improvements / Maintenance,,18/08/2023,22/08/2023,393.55,,Lorne Stewart  Plc
"Commercial, Corporate & landlord Services",Property Services & Facilities Management,Resources,Reactive Maintenance,Premises,"Repairs, Alterations & Maintenance of Buildings",Building Improvements / Maintenance,,04/08/2023,08/08/2023,50,,Ambassador Fire & Security LTD
"Commercial, Corporate & landlord Services",Property Services & Facilities Management,Resources,Magor Accommodation,Premises,"Repairs, Alterations & Maintenance of Buildings",Building Improvements / Maintenance,,04/08/2023,08/08/2023,78,,Ambassador Fire & Security LTD
"Commercial, Corporate & landlord Services",Property Services & Facilities Management,Resources,Usk Accommodation,Premises,"Repairs, Alterations & Maintenance of Buildings",Building Improvements / Maintenance,,18/08/2023,22/08/2023,375.54,,Lorne Stewart  Plc
"Commercial, Corporate & landlord Services",Property Services & Facilities Management,Resources,External Clients,Premises,"Repairs, Alterations & Maintenance of Buildings",Building Improvements / Maintenance,,18/08/2023,22/08/2023,540.65,,Lorne Stewart  Plc
"Commercial, Corporate & landlord Services",Property Services & Facilities Management,Resources,External Clients,Premises,"Repairs, Alterations & Maintenance of Buildings",Building Improvements / Maintenance,,18/08/2023,22/08/2023,304.63,,Lorne Stewart  Plc
Schools Total,School Group 2 � Pupil Capacity 144-314,MCC Schools,Llanfoist Fawr Primary School,Employees,Direct Employee Expenses,Agency Staff,,23/07/2023,02/08/2023,121.38,,New Directions Education Ltd
Adult Services,Direct Care Residential,Social Care and Health,Severn View Residential,Supplies & Services,"Equipment, Furniture and Materials",Cleaning Materials.,,10/08/2023,17/08/2023,1083.23,,Newhall Janitorial Ltd
"Leisure, Youth & Outdoor Adventure",Leisure Services,MonLife Directorate,Caldicot Leisure Centre,Supplies & Services,Catering,Cafe,,03/08/2023,17/08/2023,219.92,,Castell Howell Foods Ltd
"Leisure, Youth & Outdoor Adventure",Leisure Services,MonLife Directorate,Caldicot Leisure Centre,Supplies & Services,Catering,Cafe,,03/08/2023,17/08/2023,75.85,,Castell Howell Foods Ltd
Standards,Inclusions,Children & Young People,Acorn Centre,Supplies & Services,"Equipment, Furniture and Materials",Cleaning Materials.,,26/07/2023,17/08/2023,10.94,,Newhall Janitorial Ltd
Adult Services,Direct Care Residential,Social Care and Health,Severn View Residential,Supplies & Services,"Equipment, Furniture and Materials",Provisions.,,10/08/2023,17/08/2023,132.82,,Dole
Information Communication Technology,Technology & Organisational Design,Resources,Digital Design & Innovation,Supplies & Services,Communications and Computing,Computer Licences,,19/07/2023,22/08/2023,208.64,,SRS Public
Finance & Business Devlopment,Attractions,MonLife Directorate,Old Station Tintern,Supplies & Services,Catering,Cafe,,03/08/2023,08/08/2023,19.84,,Castell Howell Foods Ltd
Adult Services,Direct Care Residential,Social Care and Health,Severn View Residential,Supplies & Services,"Equipment, Furniture and Materials",Provisions.,,25/07/2023,03/08/2023,536.94,,Castell Howell Foods Ltd
Adult Services,Direct Care Residential,Social Care and Health,Severn View Residential,Supplies & Services,"Equipment, Furniture and Materials",Provisions.,,25/07/2023,03/08/2023,-536.94,,Castell Howell Foods Ltd
Adult Services,Community Care Team,Social Care and Health,Chepstow Adult Team,Third Party Payments,Third Party,Personal Care.,,05/08/2023,07/08/2023,11.6,,REDACTED PERSONAL DATA
Adult Services,Community Care Team,Social Care and Health,Chepstow Adult Team,Third Party Payments,Third Party,Personal Care.,,16/08/2023,16/08/2023,1306.84,,REDACTED PERSONAL DATA
"Leisure, Youth & Outdoor Adventure",Leisure Services,MonLife Directorate,Caldicot Leisure Centre,Supplies & Services,Catering,Cafe,,03/08/2023,17/08/2023,-75.85,,Castell Howell Foods Ltd
Adult Services,Community Care Team,Social Care and Health,Chepstow Adult Team,Third Party Payments,Third Party,Personal Care.,,16/08/2023,16/08/2023,504.2,,REDACTED PERSONAL DATA
Adult Services,Community Care Team,Social Care and Health,Chepstow Adult Team,Third Party Payments,Third Party,Personal Care.,,16/08/2023,16/08/2023,177.6,,REDACTED PERSONAL DATA
"Leisure, Youth & Outdoor Adventure",Play,MonLife Directorate,Holiday Playworks,Supplies & Services,Communications and Computing,Postages,,31/07/2023,03/08/2023,4.95,,Baker Ross Ltd
Finance & Business Devlopment,Borough Theatre,MonLife Directorate,Borough Theatre General,Supplies & Services,"Equipment, Furniture and Materials",Promotions And Exhibitions,,09/07/2023,03/08/2023,1733.94,,Theatre Ad Hoc
Finance & Business Devlopment,Borough Theatre,MonLife Directorate,Borough Theatre General,Supplies & Services,"Equipment, Furniture and Materials",Promotions And Exhibitions,,19/07/2023,11/08/2023,596.44,,Gilwern Primary School - school fund
Adult Services,Community Care Team,Social Care and Health,Chepstow Adult Team,Third Party Payments,Third Party,Personal Care.,,05/08/2023,07/08/2023,100.71,,REDACTED PERSONAL DATA
Finance & Business Devlopment,Museums,MonLife Directorate,Museums General,Supplies & Services,Communications and Computing,Postages,,03/08/2023,08/08/2023,4.16,,Amazon Payments UK Limited
Adult Services,Direct Care Residential,Social Care and Health,Mardy Park,Supplies & Services,"Equipment, Furniture and Materials",Provisions.,,11/08/2023,16/08/2023,33.07,,Castell Howell Foods Ltd
Adult Services,Direct Care Residential,Social Care and Health,Mardy Park,Supplies & Services,"Equipment, Furniture and Materials",Provisions.,,11/08/2023,16/08/2023,-33.07,,Castell Howell Foods Ltd
Adult Services,Direct Care Residential,Social Care and Health,Mardy Park,Supplies & Services,"Equipment, Furniture and Materials",Provisions.,,11/08/2023,16/08/2023,191.66,,Castell Howell Foods Ltd
Adult Services,Direct Care Residential,Social Care and Health,Mardy Park,Supplies & Services,"Equipment, Furniture and Materials",Cleaning Materials.,,11/08/2023,16/08/2023,439.79,,Newhall Janitorial Ltd
Adult Services,Direct Care,Social Care and Health,Monmouthshire Meals,Supplies & Services,"Equipment, Furniture and Materials",Provisions.,,04/08/2023,16/08/2023,3561.44,,Apetito Ltd
Adult Services,Direct Care Residential,Social Care and Health,Mardy Park,Supplies & Services,"Equipment, Furniture and Materials",Provisions.,,21/07/2023,07/08/2023,93.57,,Castell Howell Foods Ltd
Adult Services,Direct Care Residential,Social Care and Health,Mardy Park,Supplies & Services,"Equipment, Furniture and Materials",Provisions.,,21/07/2023,07/08/2023,-213.81,,Castell Howell Foods Ltd
Adult Services,Direct Care Residential,Social Care and Health,Mardy Park,Supplies & Services,"Equipment, Furniture and Materials",Provisions.,,21/07/2023,07/08/2023,213.81,,Castell Howell Foods Ltd
Adult Services,Direct Care Residential,Social Care and Health,Mardy Park,Supplies & Services,"Equipment, Furniture and Materials",Provisions.,,21/07/2023,07/08/2023,271.55,,Castell Howell Foods Ltd
Adult Services,Direct Care Residential,Social Care and Health,Severn View Residential,Supplies & Services,"Equipment, Furniture and Materials",Provisions.,,22/08/2023,01/09/2023,460.86,,Castell Howell Foods Ltd
Adult Services,Direct Care Residential,Social Care and Health,Severn View Residential,Supplies & Services,"Equipment, Furniture and Materials",Provisions.,,22/08/2023,01/09/2023,417.31,,Castell Howell Foods Ltd
Adult Services,Direct Care Residential,Social Care and Health,Severn View Residential,Supplies & Services,"Equipment, Furniture and Materials",Provisions.,,22/08/2023,01/09/2023,-417.31,,Castell Howell Foods Ltd
Finance & Business Devlopment,Attractions,MonLife Directorate,Old Station Tintern,Supplies & Services,Catering,Cafe,,11/07/2023,02/08/2023,102.7,,Brookes Wye Valley Dairy Co Ltd
Schools Total,School Group 7 � Pupil Capacity 501-1800,MCC Schools,Caldicot School,Supplies & Services,Communications and Computing,Postages,,03/07/2023,08/08/2023,870,,Royal Mail
"Leisure, Youth & Outdoor Adventure",Leisure Services,MonLife Directorate,Caldicot Leisure Centre,Supplies & Services,Communications and Computing,Licences,,30/06/2023,08/08/2023,8621.56,,PPL PRS LTD
"Leisure, Youth & Outdoor Adventure",Leisure Services,MonLife Directorate,Abergavenny Leisure Centre,Supplies & Services,Communications and Computing,Licences,,30/06/2023,08/08/2023,14207.47,,PPL PRS LTD
"Facilities, Fleet & Decarbonisation",Transport Department,Communities & Place,Transport,Transport,Direct Transport Costs,Spare Parts,,20/06/2023,15/08/2023,61.04,,Glenside Commercials Ltd
"Enterprise, Housing & Community Animation",General Fund Housing,Communities & Place,Homelessness,Supplies & Services,Communications and Computing,IT Software,,03/03/2023,15/08/2023,15660.96,,Monmouthshire Housing Association Ltd
Adult Services,Community Care Team,Social Care and Health,Chepstow Adult Team,Third Party Payments,Third Party,Personal Care.,,05/08/2023,07/08/2023,100.71,,REDACTED PERSONAL DATA
SCH Support,Finance (SHS),Social Care and Health,Finance,Supplies & Services,Communications and Computing,IT Hardware,,31/07/2023,10/08/2023,255,,SRS Public
SCH Support,Finance (SHS),Social Care and Health,Finance,Supplies & Services,Communications and Computing,IT Hardware,,31/07/2023,10/08/2023,14,,SRS Public
SCH Support,Finance (SHS),Social Care and Health,Finance,Supplies & Services,Communications and Computing,IT Hardware,,31/07/2023,10/08/2023,50,,SRS Public
SCH Support,Finance (SHS),Social Care and Health,Finance,Supplies & Services,Communications and Computing,IT Hardware,,31/07/2023,10/08/2023,48,,SRS Public
"Facilities, Fleet & Decarbonisation",Home to School Transport Dept,Communities & Place,Home To School Transport,Transport,Direct Transport Costs,Vechicles Repairs and Maintenance,,07/08/2023,10/08/2023,68.13,,Howells Training
"Facilities, Fleet & Decarbonisation",Transport Department,Communities & Place,Transport,Transport,Direct Transport Costs,Spare Parts,,27/06/2023,15/08/2023,137.5,,Commercial Motors (Wales) LTD.
Neighbourhood Services,Highways,Communities & Place,Overhead - Mon Highways,Supplies & Services,Communications and Computing,Software Maintenance,,03/03/2023,08/08/2023,1500,,SRS Public
Neighbourhood Services,Highways,Communities & Place,Overhead - Mon Highways,Supplies & Services,Communications and Computing,Software Maintenance,,03/03/2023,08/08/2023,500,,SRS Public
Neighbourhood Services,Highways,Communities & Place,Overhead - Mon Highways,Supplies & Services,Communications and Computing,Software Maintenance,,03/03/2023,08/08/2023,1750,,SRS Public
"Facilities, Fleet & Decarbonisation",Home to School Transport Dept,Communities & Place,Home To School Transport,Transport,Direct Transport Costs,Vechicles Repairs and Maintenance,,12/07/2023,10/08/2023,379.18,,Malvern Tyres (Wholesale) Ltd
"Facilities, Fleet & Decarbonisation",Home to School Transport Dept,Communities & Place,Home To School Transport,Transport,Direct Transport Costs,Vechicles Repairs and Maintenance,,25/07/2023,10/08/2023,40,,Malvern Tyres (Wholesale) Ltd
"Facilities, Fleet & Decarbonisation",Home to School Transport Dept,Communities & Place,Home To School Transport,Transport,Direct Transport Costs,Vechicles Repairs and Maintenance,,07/08/2023,10/08/2023,537,,Kudos Compamies Ltd
"Facilities, Fleet & Decarbonisation",Home to School Transport Dept,Communities & Place,Passenger Transport � Service 65,Transport,Direct Transport Costs,Vechicles Repairs and Maintenance,,10/07/2023,10/08/2023,177.6,,Malvern Tyres (Wholesale) Ltd
"Facilities, Fleet & Decarbonisation",Home to School Transport Dept,Communities & Place,Home To School Transport,Transport,Direct Transport Costs,Vechicles Repairs and Maintenance,,23/08/2023,29/08/2023,115,,Btac Bristol Ltd
"Facilities, Fleet & Decarbonisation",Home to School Transport Dept,Communities & Place,Home To School Transport,Transport,Direct Transport Costs,Vechicles Repairs and Maintenance,,24/08/2023,29/08/2023,195,,Bulwark Bus & Coach Eng. Ltd
"Facilities, Fleet & Decarbonisation",Home to School Transport Dept,Communities & Place,Home To School Transport,Transport,Direct Transport Costs,Vechicles Repairs and Maintenance,,24/08/2023,29/08/2023,2008.96,,Bulwark Bus & Coach Eng. Ltd
Finance & Business Devlopment,Borough Theatre,MonLife Directorate,Borough Theatre General,Supplies & Services,"Equipment, Furniture and Materials",Bar,,12/07/2023,02/08/2023,166.92,,Tanners Wines Ltd
Standards,Early Years,Children & Young People,Flying Start Grant,Supplies & Services,"Printing, Stationery and General Office Expenses",Printing,,09/08/2023,10/08/2023,56,,Zenith Print and Packaging Ltd
Finance & Business Devlopment,Attractions,MonLife Directorate,Caldicot Castle & Country Park,Supplies & Services,"Equipment, Furniture and Materials",Souvenirs For Resale.,,11/07/2023,08/08/2023,93.2,,Westair Reproductions Ltd
"Facilities, Fleet & Decarbonisation",Home to School Transport Dept,Communities & Place,Home To School Transport,Transport,Direct Transport Costs,Vechicles Repairs and Maintenance,,15/08/2023,17/08/2023,345,,Caldicot Group Limited
"Leisure, Youth & Outdoor Adventure",Leisure Services,MonLife Directorate,Chepstow Leisure Centre,Supplies & Services,"Equipment, Furniture and Materials",General Goods For Resale.,,27/07/2023,07/08/2023,170.4,,Splash About International Ltd
Finance & Business Devlopment,Attractions,MonLife Directorate,Caldicot Castle & Country Park,Supplies & Services,Catering,Catering,,30/07/2023,02/08/2023,21.36,,Raglan Dairy Ltd
Neighbourhood Services,Highways,Communities & Place,Stores,Supplies & Services,"Equipment, Furniture and Materials",Small Plant & Tools.,,05/06/2023,08/08/2023,70,,Mon & Border Motor Factors Ltd
Neighbourhood Services,Highways,Communities & Place,Pumping stations,Transport,Direct Transport Costs,Vechicles Repairs and Maintenance,,18/04/2023,10/08/2023,1654,,KPR Engineering (M&E) Ltd
Adult Services,Community Care Team,Social Care and Health,Chepstow Adult Team,Third Party Payments,Third Party,Personal Care.,,05/08/2023,07/08/2023,100.71,,REDACTED PERSONAL DATA
Finance & Business Devlopment,Attractions,MonLife Directorate,Old Station Tintern,Supplies & Services,Communications and Computing,IT Software,,01/08/2023,04/08/2023,95,,Ecr Concepts Ltd
Neighbourhood Services,Waste and Street Services,Communities & Place,Fitting Shop Grounds,Supplies & Services,"Equipment, Furniture and Materials",Small Plant & Tools.,,06/06/2023,08/08/2023,155,,Forest Products Ltd
"Leisure, Youth & Outdoor Adventure",Leisure Services,MonLife Directorate,Chepstow Leisure Centre,Supplies & Services,"Equipment, Furniture and Materials",General Goods For Resale.,,27/07/2023,07/08/2023,1388.42,,Splash About International Ltd
"Leisure, Youth & Outdoor Adventure",Leisure Services,MonLife Directorate,Chepstow Leisure Centre,Supplies & Services,"Equipment, Furniture and Materials",General Goods For Resale.,,27/07/2023,07/08/2023,-34.2,,Splash About International Ltd
"Leisure, Youth & Outdoor Adventure",Leisure Services,MonLife Directorate,Chepstow Leisure Centre,Supplies & Services,"Equipment, Furniture and Materials",General Goods For Resale.,,27/07/2023,07/08/2023,34.2,,Splash About International Ltd
Children Services,Children Services Teams,Social Care and Health,Children's Services Man/Support,Supplies & Services,"Equipment, Furniture and Materials",Removal Costs,,31/07/2023,11/08/2023,234.08,,The Maltings Document Storage SolutionsLtd
Children Services,Children Services Other,Social Care and Health,External Placements - CLA,Third Party Payments,Third Party,Fostering/Adoption Allowances,,30/06/2023,09/10/2023,-3783.55,,Compass Fostering Wales Limited
Children Services,Children Services Other,Social Care and Health,External Placements - CLA,Third Party Payments,Third Party,Fostering/Adoption Allowances,,30/06/2023,09/10/2023,-3783.55,,Compass Fostering Wales Limited
Children Services,Children Services Other,Social Care and Health,External Placements - CLA,Third Party Payments,Third Party,Fostering/Adoption Allowances,,30/06/2023,09/10/2023,-3783.55,,Compass Fostering Wales Limited
Children Services,Children Services Other,Social Care and Health,External Placements - CLA,Third Party Payments,Third Party,Fostering/Adoption Allowances,,30/06/2023,09/10/2023,-3783.55,,Compass Fostering Wales Limited
Children Services,Children Services Other,Social Care and Health,External Placements - CLA,Third Party Payments,Third Party,Fostering/Adoption Allowances,,30/06/2023,09/10/2023,-3783.55,,Compass Fostering Wales Limited
Children Services,Children Services Other,Social Care and Health,External Placements - CLA,Third Party Payments,Third Party,Fostering/Adoption Allowances,,31/07/2023,10/08/2023,5270,,The Foster Care Co-operative Ltd
"Facilities, Fleet & Decarbonisation",Transport Department,Communities & Place,Transport,Transport,Direct Transport Costs,All Other Non-Contract Transport Work.,,20/07/2023,03/08/2023,83.09,,R M Hockey & Son Ltd
"Facilities, Fleet & Decarbonisation",Transport Department,Communities & Place,Transport,Transport,Direct Transport Costs,All Other Non-Contract Transport Work.,,07/07/2023,03/08/2023,610,,NTM - GB Limited
"Facilities, Fleet & Decarbonisation",Transport Department,Communities & Place,Transport,Transport,Direct Transport Costs,All Other Non-Contract Transport Work.,,14/07/2023,03/08/2023,690.23,,NTM - GB Limited
Children Services,Children Services Other,Social Care and Health,External Placements - CLA,Third Party Payments,Third Party,Fostering/Adoption Allowances,,28/07/2023,11/08/2023,403.2,,National Fostering Agency
Children Services,Children Services Other,Social Care and Health,External Placements - CLA,Third Party Payments,Third Party,Fostering/Adoption Allowances,,31/07/2023,11/08/2023,3895.46,,Supported Fostering Services
"Facilities, Fleet & Decarbonisation",Transport Department,Communities & Place,Transport,Transport,Direct Transport Costs,All Other Non-Contract Transport Work.,,20/07/2023,03/08/2023,110,,Walls Truck Services
"Facilities, Fleet & Decarbonisation",Transport Department,Communities & Place,Transport,Transport,Direct Transport Costs,All Other Non-Contract Transport Work.,,21/07/2023,03/08/2023,152,,Walls Truck Services
Schools Total,School Group 7 � Pupil Capacity 501-1800,MCC Schools,King Henry VIII Comprehensive,Supplies & Services,"Equipment, Furniture and Materials",Equipment Purchases,,26/07/2023,10/08/2023,3.38,,Hope Education Ltd
Adult Services,Community Care Team,Social Care and Health,Chepstow Adult Team,Third Party Payments,Third Party,Personal Care.,,18/07/2023,08/08/2023,2246.72,,Abicare Services Ltd
Adult Services,Community Care Team,Social Care and Health,Chepstow Adult Team,Third Party Payments,Third Party,Personal Care.,,18/07/2023,08/08/2023,969.48,,Abicare Services Ltd
Schools Total,School Group 7 � Pupil Capacity 501-1800,MCC Schools,King Henry VIII Comprehensive,Supplies & Services,"Equipment, Furniture and Materials",Equipment Purchases,,26/07/2023,10/08/2023,4.02,,Hope Education Ltd
Schools Total,School Group 7 � Pupil Capacity 501-1800,MCC Schools,King Henry VIII Comprehensive,Supplies & Services,"Equipment, Furniture and Materials",Equipment Purchases,,26/07/2023,10/08/2023,7.83,,Hope Education Ltd
Schools Total,School Group 7 � Pupil Capacity 501-1800,MCC Schools,King Henry VIII Comprehensive,Supplies & Services,"Equipment, Furniture and Materials",Equipment Purchases,,26/07/2023,10/08/2023,39.4,,Hope Education Ltd
Schools Total,School Group 7 � Pupil Capacity 501-1800,MCC Schools,King Henry VIII Comprehensive,Supplies & Services,"Equipment, Furniture and Materials",Equipment Purchases,,26/07/2023,10/08/2023,33.4,,Hope Education Ltd
Schools Total,School Group 7 � Pupil Capacity 501-1800,MCC Schools,King Henry VIII Comprehensive,Supplies & Services,"Equipment, Furniture and Materials",Equipment Purchases,,26/07/2023,10/08/2023,16.72,,Hope Education Ltd
"Facilities, Fleet & Decarbonisation",Transport Department,Communities & Place,Transport,Transport,Direct Transport Costs,All Other Non-Contract Transport Work.,,10/08/2023,30/08/2023,473.7,,Euro Commercials (South Wales) L
"Facilities, Fleet & Decarbonisation",Transport Department,Communities & Place,Transport,Transport,Direct Transport Costs,All Other Non-Contract Transport Work.,,10/08/2023,30/08/2023,36.8,,Mon & Border Motor Factors Ltd
Schools Total,School Group 7 � Pupil Capacity 501-1800,MCC Schools,King Henry VIII Comprehensive,Supplies & Services,"Equipment, Furniture and Materials",Equipment Purchases,,26/07/2023,10/08/2023,20.9,,Hope Education Ltd
Schools Total,School Group 7 � Pupil Capacity 501-1800,MCC Schools,King Henry VIII Comprehensive,Supplies & Services,"Equipment, Furniture and Materials",Equipment Purchases,,26/07/2023,10/08/2023,0.44,,Hope Education Ltd
Schools Total,School Group 7 � Pupil Capacity 501-1800,MCC Schools,King Henry VIII Comprehensive,Supplies & Services,"Equipment, Furniture and Materials",Equipment Purchases,,26/07/2023,10/08/2023,1.14,,Hope Education Ltd
"Facilities, Fleet & Decarbonisation",Transport Department,Communities & Place,Transport,Transport,Direct Transport Costs,All Other Non-Contract Transport Work.,,19/07/2023,03/08/2023,-247.88,,NTM - GB Limited
"Facilities, Fleet & Decarbonisation",Transport Department,Communities & Place,Transport,Transport,Direct Transport Costs,All Other Non-Contract Transport Work.,,22/07/2023,03/08/2023,153.15,,Walls Truck Services
Children Services,Children Services Other,Social Care and Health,External Placements - CLA,Third Party Payments,Third Party,Fostering/Adoption Allowances,,28/07/2023,11/08/2023,3816.41,,Action For Children
Children Services,Children Services Other,Social Care and Health,External Placements - CLA,Third Party Payments,Third Party,Fostering/Adoption Allowances,,31/07/2023,11/08/2023,4207.01,,TLC Wales Fostering
"Facilities, Fleet & Decarbonisation",Transport Department,Communities & Place,Transport,Transport,Direct Transport Costs,All Other Non-Contract Transport Work.,,28/07/2023,01/09/2023,255,,T's Auto Electrics
"Facilities, Fleet & Decarbonisation",Transport Department,Communities & Place,Transport,Transport,Direct Transport Costs,All Other Non-Contract Transport Work.,,29/07/2023,01/09/2023,425,,T's Auto Electrics
"Facilities, Fleet & Decarbonisation",Transport Planning,Communities & Place,Public Transport Subsidy Grant,Transport,Public Transport,Bus Subsidies,,30/05/2023,30/08/2023,833.33,,Varteg Motors Ltd
Public Protection,Public Protection,Social Care and Health,Animal Licensing Wales,Supplies & Services,Services,Professional And Specialist Fees,,10/08/2023,15/08/2023,591,,Reveal Media Ltd
Public Protection,Public Protection,Social Care and Health,Animal Licensing Wales,Supplies & Services,Services,Professional And Specialist Fees,,09/08/2023,15/08/2023,940,,Kudos Compamies Ltd
Finance & Business Devlopment,Attractions,MonLife Directorate,Old Station Tintern,Supplies & Services,Services,Professional And Specialist Fees,,31/07/2023,15/08/2023,8.84,,Security Plus Limited
Finance & Business Devlopment,Attractions,MonLife Directorate,Old Station Tintern,Supplies & Services,Services,Professional And Specialist Fees,,16/06/2023,15/08/2023,88.08,,Metric Group Ltd
"Placemaking, Highways & Flooding",Planning Policy,Communities & Place,Planning Policy,Supplies & Services,Services,Professional And Specialist Fees,,01/08/2023,15/08/2023,10500,,Blaenau Gwent County Borough Council
Neighbourhood Services,Highways,Communities & Place,Siding and Cleaning,Supplies & Services,Services,Professional And Specialist Fees,,01/07/2023,01/08/2023,720,,Event Clean
Neighbourhood Services,Highways,Communities & Place,Capital - Permanent Patching,Supplies & Services,Services,Professional And Specialist Fees,,01/07/2023,01/08/2023,120,,Event Clean
"Placemaking, Highways & Flooding",Highways Dev & Car Parks,Communities & Place,Traffic & Road Safety,Supplies & Services,Services,Professional And Specialist Fees,,21/06/2023,29/08/2023,1500,,WSP (Real Estate & Infrastructure) Ltd
Neighbourhood Services,Highways,Communities & Place,Resurfacing,Supplies & Services,Services,Professional And Specialist Fees,,24/07/2023,08/08/2023,2876.76,,A.L.D Plant Hire
Countryside & Culture,Countryside,MonLife Directorate,ENRAW � Gwent Green Grid Partnership,Supplies & Services,Services,Professional And Specialist Fees,,28/07/2023,22/08/2023,3215,,Lepus Consulting Ltd
Children Services,Children Services Teams,Social Care and Health,Long Term Support Team,Supplies & Services,Services,Professional And Specialist Fees,,12/07/2023,07/08/2023,240.5,,Cardiff City Council
Finance & Business Devlopment,Attractions,MonLife Directorate,Old Station Tintern,Supplies & Services,Services,Professional And Specialist Fees,,25/07/2023,07/08/2023,1909,,Perrygrove Railway
Finance & Business Devlopment,Attractions,MonLife Directorate,Old Station Tintern,Supplies & Services,Services,Professional And Specialist Fees,,25/07/2023,07/08/2023,3247,,Perrygrove Railway
Schools Total,School Group 7 � Pupil Capacity 501-1800,MCC Schools,Caldicot School,Employees,Direct Employee Expenses,Agency Staff,,23/07/2023,02/08/2023,226.5,,New Directions Education Ltd
Schools Total,School Group 7 � Pupil Capacity 501-1800,MCC Schools,Caldicot School,Employees,Direct Employee Expenses,Agency Staff,,23/07/2023,02/08/2023,226.5,,New Directions Education Ltd
Schools Total,School Group 7 � Pupil Capacity 501-1800,MCC Schools,Caldicot School,Employees,Direct Employee Expenses,Agency Staff,,23/07/2023,02/08/2023,226.5,,New Directions Education Ltd
Schools Total,School Group 7 � Pupil Capacity 501-1800,MCC Schools,Caldicot School,Employees,Direct Employee Expenses,Agency Staff,,23/07/2023,02/08/2023,226.5,,New Directions Education Ltd
Schools Total,School Group 7 � Pupil Capacity 501-1800,MCC Schools,Caldicot School,Employees,Direct Employee Expenses,Agency Staff,,23/07/2023,02/08/2023,226.5,,New Directions Education Ltd
Schools Total,School Group 7 � Pupil Capacity 501-1800,MCC Schools,Caldicot School,Employees,Direct Employee Expenses,Agency Staff,,23/07/2023,02/08/2023,131.82,,New Directions Education Ltd
Schools Total,School Group 7 � Pupil Capacity 501-1800,MCC Schools,Caldicot School,Employees,Direct Employee Expenses,Agency Staff,,23/07/2023,02/08/2023,131.82,,New Directions Education Ltd
Public Protection,Public Protection,Social Care and Health,Animal Licensing Wales,Supplies & Services,Services,Professional And Specialist Fees,,15/08/2023,11/09/2023,-61,,Kudos Compamies Ltd
Schools Total,School Group 7 � Pupil Capacity 501-1800,MCC Schools,Caldicot School,Employees,Direct Employee Expenses,Agency Staff,,23/07/2023,02/08/2023,131.82,,New Directions Education Ltd
Schools Total,School Group 7 � Pupil Capacity 501-1800,MCC Schools,Caldicot School,Employees,Direct Employee Expenses,Agency Staff,,23/07/2023,02/08/2023,207.11,,New Directions Education Ltd
Schools Total,School Group 7 � Pupil Capacity 501-1800,MCC Schools,Caldicot School,Employees,Direct Employee Expenses,Agency Staff,,23/07/2023,02/08/2023,207.11,,New Directions Education Ltd
Schools Total,School Group 7 � Pupil Capacity 501-1800,MCC Schools,Caldicot School,Employees,Direct Employee Expenses,Agency Staff,,23/07/2023,02/08/2023,207.11,,New Directions Education Ltd
Schools Total,School Group 7 � Pupil Capacity 501-1800,MCC Schools,Caldicot School,Employees,Direct Employee Expenses,Agency Staff,,23/07/2023,02/08/2023,207.11,,New Directions Education Ltd
Schools Total,School Group 7 � Pupil Capacity 501-1800,MCC Schools,Caldicot School,Employees,Direct Employee Expenses,Agency Staff,,23/07/2023,02/08/2023,181.98,,New Directions Education Ltd
Schools Total,School Group 7 � Pupil Capacity 501-1800,MCC Schools,Caldicot School,Employees,Direct Employee Expenses,Agency Staff,,23/07/2023,02/08/2023,181.98,,New Directions Education Ltd
Schools Total,School Group 7 � Pupil Capacity 501-1800,MCC Schools,Caldicot School,Employees,Direct Employee Expenses,Agency Staff,,23/07/2023,02/08/2023,181.98,,New Directions Education Ltd
Schools Total,School Group 7 � Pupil Capacity 501-1800,MCC Schools,Caldicot School,Employees,Direct Employee Expenses,Agency Staff,,23/07/2023,02/08/2023,181.98,,New Directions Education Ltd
Schools Total,School Group 7 � Pupil Capacity 501-1800,MCC Schools,Caldicot School,Employees,Direct Employee Expenses,Agency Staff,,23/07/2023,02/08/2023,207.56,,New Directions Education Ltd
Adult Services,Community Care Team,Social Care and Health,Chepstow Adult Team,Third Party Payments,Third Party,Personal Care.,,16/08/2023,16/08/2023,1091.44,,REDACTED PERSONAL DATA
Adult Services,Community Care Team,Social Care and Health,Chepstow Adult Team,Third Party Payments,Third Party,Personal Care.,,16/08/2023,16/08/2023,2820,,REDACTED PERSONAL DATA
Public Protection,Public Protection,Social Care and Health,Trading Standards Management,Supplies & Services,Services,Professional And Specialist Fees,,31/07/2023,07/08/2023,3183.9,,T R Davies Ltd
Children Services,Children Services Teams,Social Care and Health,Long Term Support Team,Employees,Direct Employee Expenses,Agency Staff,,26/07/2023,03/08/2023,1646,,Liquid Personnel
Children Services,Children Services Teams,Social Care and Health,Long Term Support Team,Employees,Direct Employee Expenses,Agency Staff,,01/08/2023,03/08/2023,496.32,,NonStop Recruitment Ltd.
Children Services,Children Services Teams,Social Care and Health,Long Term Support Team,Employees,Direct Employee Expenses,Agency Staff,,01/08/2023,03/08/2023,47,,NonStop Recruitment Ltd.
Children Services,Children Services Teams,Social Care and Health,Long Term Support Team,Employees,Direct Employee Expenses,Agency Staff,,01/08/2023,03/08/2023,72.5,,NonStop Recruitment Ltd.
Children Services,Children Services Teams,Social Care and Health,Early Help and Assessment Team,Employees,Direct Employee Expenses,Agency Staff,,26/07/2023,07/08/2023,1525,,Liquid Personnel
Children Services,Children Services Teams,Social Care and Health,Early Help and Assessment Team,Employees,Direct Employee Expenses,Agency Staff,,26/07/2023,07/08/2023,1548.4,,Liquid Personnel
Children Services,Children Services Other,Social Care and Health,Children � Service Contracts,Premises,"Repairs, Alterations & Maintenance of Buildings",Building Improvements / Maintenance,,14/07/2023,30/08/2023,16736.22,,Action For Children
Children Services,Children Services Teams,Social Care and Health,Early Help and Assessment Team,Employees,Direct Employee Expenses,Agency Staff,,13/07/2023,07/08/2023,1480,,Liquid Personnel
Children Services,Children Services Teams,Social Care and Health,Early Help and Assessment Team,Employees,Direct Employee Expenses,Agency Staff,,13/07/2023,07/08/2023,1510.15,,Liquid Personnel
